Workbook

Sheet Introduction
B2: Vehicular Air Pollution Information System
C9: 1. This is an introductory tool for calculating vehicular emissions
C10: 2. This tool is NOT meant for one particular vehicular category,
D11: but to provide a methodology for calculating emissions for any category
C12: 3. Follow steps 1-5 to understand the inputs required
D13: and how to calculate vehicular emissions
C14: 4. Primary goal of this tool is to introduce input requirements
D15: and dependency of total emissions on various parameters
C16: 5. Emissions per year = number of vehicles *
F17: vehicle kilometers traveled per day *
F18: emission factor *
F19: 365
C21: See SIM-Series & VAPIS Brochure
C22: SIM 02-2008: 4 ways to Vehicular Emissions Inventory
D23: https://www.urbanemissions.info/tools

Sheet Inputs
B2: Vehicular Air Pollution Information System
C7: Fill the cells in red to start the framework
C9: Vehicular Category | K9: Cars | L9: The calculator is set up to analyze one category at a time.
C10: Base Year | K10: 2020 | L10: Enter the base year, for which the information is available
C11: Number of Vehicles in Base Year | K11: 100000 | M11: Time frame for calculations is set for 30 years
C12: Annual Growth Rate | K12: 0.03 | L12: This is an estimated growth.. and can be changed for every year
C13: Age Split of the Vehicles | I13: 0 to 5 years | K13: 0.5845325259 | L13: This is an estimated age split among the fleet and used to calculate the growth
I14: 6 to 10 years | K14: 0.3262971992 | M14: by age group and effective emission factor of the fleet
I15: 11 to 15 years | K15: 0.08508742944 | M15: total should equal 100%
I16: 16 to 20 years | K16: 0.004076648746 | M16: =SUM(K13:K17) -> 1 | N16: Check this
I17: above 20 years | K17: 6.196675248e-06
C18: Retirement age | I18: in years | K18: 23 | L18: if any, otherwise keep 20
C19: Vehicles Kilometers Traveled | I19: km per day | K19: 40 | L19: Average for this category
C20: New Emission Factor | I20: gm/km | K20: 4 | L20: This is the EF of the new vehicles, according to the standards
C21: EF Deterioration % | I21: 0 to 5 years | K21: 0.005 | L21: This is an approximate deterioration rate and
I22: 6 to 10 years | K22: 0.01 | M22: user can change as they see fit
I23: 11 to 15 years | K23: 0.02
I24: 16 to 20 years | K24: 0.03
I25: above 20 years | K25: 0.04

Sheet Vehicles
B2: Vehicular Air Pollution Information System
B7: Year | C7: Vehicle | D7: Growth | E7: Retirement | L7: Red numbers are inputs
C8: Number | D8: Rate | E8: Age | L8: User can gorwth rate & Retirement age for each year
B9: =Inputs!K10 -> 2020 | C9: =Inputs!K11 -> 100000
B10: =B9+1 -> 2021 | C10: =Vehicles_byAge!C15 -> 109770.2462 | D10: =Inputs!K12 -> 0.03 | E10: =Inputs!K18 -> 23
B11: =B10+1 -> 2022 | C11: =Vehicles_byAge!C16 -> 119580.7752 | D11: =D10 -> 0.03 | E11: =E10 -> 23
B12: 2023 | C12: =Vehicles_byAge!C17 -> 129314.4657 | D12: =D11 -> 0.03 | E12: =E11 -> 23
B13: 2024 | C13: =Vehicles_byAge!C18 -> 138893.8422 | D13: 0.03 | E13: 23
B14: 2025 | C14: =Vehicles_byAge!C19 -> 148247.4742 | D14: 0.03 | E14: 23
B15: 2026 | C15: =Vehicles_byAge!C20 -> 157312.9407 | D15: 0.03 | E15: 23
B16: 2027 | C16: =Vehicles_byAge!C21 -> 166041.3412 | D16: 0.03 | E16: 23
B17: 2028 | C17: =Vehicles_byAge!C22 -> 174393.8394 | D17: 0.03 | E17: 23
B18: 2029 | C18: =Vehicles_byAge!C23 -> 182340.7441 | D18: 0.03 | E18: 23
B19: 2030 | C19: =Vehicles_byAge!C24 -> 189871.8358 | D19: 0.03 | E19: 23
B20: 2031 | C20: =Vehicles_byAge!C25 -> 197013.5711 | D20: 0.03 | E20: 23
B21: 2032 | C21: =Vehicles_byAge!C26 -> 203840.0024 | D21: 0.03 | E21: 23
B22: 2033 | C22: =Vehicles_byAge!C27 -> 210466.251 | D22: 0.03 | E22: 23
B23: 2034 | C23: =Vehicles_byAge!C28 -> 217023.9332 | D23: 0.03 | E23: 23
B24: 2035 | C24: =Vehicles_byAge!C29 -> 223630.5112 | D24: 0.03 | E24: 23
B25: 2036 | C25: =Vehicles_byAge!C30 -> 230369.1209 | D25: 0.03 | E25: 23
B26: 2037 | C26: =Vehicles_byAge!C31 -> 237286.9356 | D26: 0.03 | E26: 23
B27: 2038 | C27: =Vehicles_byAge!C32 -> 244406.5032 | D27: 0.03 | E27: 23
B28: 2039 | C28: =Vehicles_byAge!C33 -> 251738.7322 | D28: 0.03 | E28: 23
B29: 2040 | C29: =Vehicles_byAge!C34 -> 259290.8772 | D29: 0.03 | E29: 23
B30: 2041 | C30: =Vehicles_byAge!C35 -> 267069.5998 | D30: 0.03 | E30: 23
B31: 2042 | C31: =Vehicles_byAge!C36 -> 275081.6871 | D31: 0.03 | E31: 23
B32: 2043 | C32: =Vehicles_byAge!C37 -> 283334.1377 | D32: 0.03 | E32: 23
B33: 2044 | C33: =Vehicles_byAge!C38 -> 291834.1618 | D33: 0.03 | E33: 23
B34: 2045 | C34: =Vehicles_byAge!C39 -> 300589.1866 | D34: 0.03 | E34: 23
B35: 2046 | C35: =Vehicles_byAge!C40 -> 309606.8622 | D35: 0.03 | E35: 23
B36: 2047 | C36: =Vehicles_byAge!C41 -> 318895.0681 | D36: 0.03 | E36: 23
B37: 2048 | C37: =Vehicles_byAge!C42 -> 328461.9202 | D37: 0.03 | E37: 23
B38: 2049 | C38: =Vehicles_byAge!C43 -> 338315.7778 | D38: 0.03 | E38: 23
B39: 2050 | C39: =Vehicles_byAge!C44 -> 348465.2511 | D39: 0.03 | E39: 23

Sheet Vehicles_byAge
B2: Vehicular Air Pollution Information System
C7: Survival | D7: 1 | E7: 2 | F7: 3 | G7: 4 | H7: 5 | I7: 6 | J7: 7 | K7: 8 | L7: 9 | M7: 10 | N7: 11 | O7: 12 | P7: 13 | Q7: 14 | R7: 15 | S7: 16 | T7: 17 | U7: 18 | V7: 19 | W7: 20 | X7: 21 | Y7: 22 | Z7: 23
B8: 1 | C8: high-rate | D8: 1 | E8: 0.9988964665 | F8: 0.9967108987 | G8: 0.9923373105 | H8: 0.9847382646 | I8: 0.9727509308 | J8: 0.955148196 | K8: 0.9307229333 | L8: 0.8983970427 | M8: 0.8573522641 | N8: 0.807173495 | O8: 0.7479880241 | P8: 0.6805771199 | Q8: 0.6064320102 | R8: 0.5277271269 | S8: 0.447191926 | T8: 0.3678794412 | U8: 0.2928530718 | V8: 0.2248376451 | W8: 0.1658986363 | X8: 0.1172164711 | Y8: 0.09 | Z8: 0.08
B9: 2 | C9: mid-rate | D9: 1 | E9: 0.9993097044 | F9: 0.997149738 | G9: 0.9922179383 | H9: 0.9830848504 | I9: 0.968222776 | J9: 0.9461170759 | K9: 0.9154053122 | L9: 0.8750415687 | M9: 0.8244736378 | N9: 0.7638107132 | O9: 0.6939506245 | P9: 0.6166315163 | Q9: 0.534376553 | R9: 0.4503140796 | S9: 0.3678794412 | T9: 0.2904342541 | U9: 0.2208662899 | V9: 0.1612482704 | W9: 0.1126285397 | X9: 0.07499864379 | Y9: 0.04743892449 | Z9: 0.02839747038
B10: 3 | C10: low-rate | D10: 1 | E10: 0.9993855395 | F10: 0.9971348239 | G10: 0.99147521 | H10: 0.980209076 | I10: 0.9608223248 | J10: 0.9307229333 | K10: 0.8875866011 | L10: 0.8298029019 | M10: 0.7569724977 | N10: 0.6703535833 | O10: 0.5731111412 | P10: 0.4702138505 | Q10: 0.3678794412 | R10: 0.2725995896 | S10: 0.1899491061 | T10: 0.1235246458 | U10: 0.07437338414 | V10: 0.04111550717 | W10: 0.02068853894 | X10: 0.009389424259 | Y10: 0.003807331458 | Z10: 0.001365849567
B12: Year | C12: Survvial rate to use ==> | H12: 1
C13: Total | D13: 1 | E13: 2 | F13: 3 | G13: 4 | H13: 5 | I13: 6 | J13: 7 | K13: 8 | L13: 9 | M13: 10 | N13: 11 | O13: 12 | P13: 13 | Q13: 14 | R13: 15 | S13: 16 | T13: 17 | U13: 18 | V13: 19 | W13: 20 | X13: 21 | Y13: 22 | Z13: 23 | AB13: Year | AC13: Y<5 | AD13: Y6-10 | AE13: Y11-15 | AF13: Y16-20 | AG13: Y>20
B14: =Vehicles!B9 -> 2020 | C14: =SUM(D14:Z14) -> 100000 | D14: =Vehicles!$C$9*Inputs!$K$13*25% -> 14613.31315 | E14: =Vehicles!$C$9*Inputs!$K$13*25% -> 14613.31315 | F14: =Vehicles!$C$9*Inputs!$K$13*20% -> 11690.65052 | G14: =Vehicles!$C$9*Inputs!$K$13*15% -> 8767.987888 | H14: =Vehicles!$C$9*Inputs!$K$13*15% -> 8767.987888 | I14: =Vehicles!$C$9*Inputs!$K$14*25% -> 8157.429981 | J14: =Vehicles!$C$9*Inputs!$K$14*25% -> 8157.429981 | K14: =Vehicles!$C$9*Inputs!$K$14*18% -> 5873.349586 | L14: =Vehicles!$C$9*Inputs!$K$14*18% -> 5873.349586 | M14: =Vehicles!$C$9*Inputs!$K$14*14% -> 4568.160789 | N14: =Vehicles!$C$9*Inputs!$K$15*25% -> 2127.185736 | O14: =Vehicles!$C$9*Inputs!$K$15*25% -> 2127.185736 | P14: =Vehicles!$C$9*Inputs!$K$15*25% -> 2127.185736 | Q14: =Vehicles!$C$9*Inputs!$K$15*20% -> 1701.748589 | R14: =Vehicles!$C$9*Inputs!$K$15*5% -> 425.4371472 | S14: =Vehicles!$C$9*Inputs!$K$16/5 -> 81.53297493 | T14: =Vehicles!$C$9*Inputs!$K$16/5 -> 81.53297493 | U14: =Vehicles!$C$9*Inputs!$K$16/5 -> 81.53297493 | V14: =Vehicles!$C$9*Inputs!$K$16/5 -> 81.53297493 | W14: =Vehicles!$C$9*Inputs!$K$16/5 -> 81.53297493 | X14: =Vehicles!$C$9*Inputs!$K$17/3 -> 0.2065558416 | Y14: =Vehicles!$C$9*Inputs!$K$17/3 -> 0.2065558416 | Z14: =Vehicles!$C$9*Inputs!$K$17/3 -> 0.2065558416 | AB14: =B14 -> 2020 | AC14: =SUM(D14:H14) -> 58453.25259 | AD14: =SUM(I14:M14) -> 32629.71992 | AE14: =SUM(N14:R14) -> 8508.742944 | AF14: =SUM(S14:W14) -> 407.6648746 | AG14: =SUM(X14:Z14) -> 0.6196675248
B15: =Vehicles!B10 -> 2021 | C15: =SUM(D15:Z15) -> 109770.2462 | D15: =D14*(1+Vehicles!D10) -> 15051.71254 | E15: =IF(E$13<=Vehicles!$E10,D14*INDEX(D$8:D$10,$H$12),0) -> 14613.31315 | F15: =IF(F$13<=Vehicles!$E10,E14*INDEX(E$8:E$10,$H$12),0) -> 14597.18687 | G15: =IF(G$13<=Vehicles!$E10,F14*INDEX(F$8:F$10,$H$12),0) -> 11652.19878 | H15: =IF(H$13<=Vehicles!$E10,G14*INDEX(G$8:G$10,$H$12),0) -> 8700.80152 | I15: =IF(I$13<=Vehicles!$E10,H14*INDEX(H$8:H$10,$H$12),0) -> 8634.173178 | J15: =IF(J$13<=Vehicles!$E10,I14*INDEX(I$8:I$10,$H$12),0) -> 7935.147607 | K15: =IF(K$13<=Vehicles!$E10,J14*INDEX(J$8:J$10,$H$12),0) -> 7791.55453 | L15: =IF(L$13<=Vehicles!$E10,K14*INDEX(K$8:K$10,$H$12),0) -> 5466.461155 | M15: =IF(M$13<=Vehicles!$E10,L14*INDEX(L$8:L$10,$H$12),0) -> 5276.599899 | N15: =IF(N$13<=Vehicles!$E10,M14*INDEX(M$8:M$10,$H$12),0) -> 3916.522995 | O15: =IF(O$13<=Vehicles!$E10,N14*INDEX(N$8:N$10,$H$12),0) -> 1717.007945 | P15: =IF(P$13<=Vehicles!$E10,O14*INDEX(O$8:O$10,$H$12),0) -> 1591.109456 | Q15: =IF(Q$13<=Vehicles!$E10,P14*INDEX(P$8:P$10,$H$12),0) -> 1447.713942 | R15: =IF(R$13<=Vehicles!$E10,Q14*INDEX(Q$8:Q$10,$H$12),0) -> 1031.994818 | S15: =IF(S$13<=Vehicles!$E10,R14*INDEX(R$8:R$10,$H$12),0) -> 224.5147234 | T15: =IF(T$13<=Vehicles!$E10,S14*INDEX(S$8:S$10,$H$12),0) -> 36.46088809 | U15: =IF(U$13<=Vehicles!$E10,T14*INDEX(T$8:T$10,$H$12),0) -> 29.99430525 | V15: =IF(V$13<=Vehicles!$E10,U14*INDEX(U$8:U$10,$H$12),0) -> 23.87718216 | W15: =IF(W$13<=Vehicles!$E10,V14*INDEX(V$8:V$10,$H$12),0) -> 18.33168208 | X15: =IF(X$13<=Vehicles!$E10,W14*INDEX(W$8:W$10,$H$12),0) -> 13.52620936 | Y15: =IF(Y$13<=Vehicles!$E10,X14*INDEX(X$8:X$10,$H$12),0) -> 0.02421174684 | Z15: =IF(Z$13<=Vehicles!$E10,Y14*INDEX(Y$8:Y$10,$H$12),0) -> 0.01859002575 | AB15: =B15 -> 2021 | AC15: =SUM(D15:H15) -> 64615.21286 | AD15: =SUM(I15:M15) -> 35103.93637 | AE15: =SUM(N15:R15) -> 9704.349156 | AF15: =SUM(S15:W15) -> 333.178781 | AG15: =SUM(X15:Z15) -> 13.56901113
B16: =Vehicles!B11 -> 2022 | C16: 119580.7752 | D16: =D15*(1+Vehicles!D11) -> 15503.26392 | E16: =IF(E$13<=Vehicles!$E11,D15*INDEX(D$8:D$10,$H$12),0) -> 15051.71254 | F16: =IF(F$13<=Vehicles!$E11,E15*INDEX(E$8:E$10,$H$12),0) -> 14597.18687 | G16: =IF(G$13<=Vehicles!$E11,F15*INDEX(F$8:F$10,$H$12),0) -> 14549.17524 | H16: =IF(H$13<=Vehicles!$E11,G15*INDEX(G$8:G$10,$H$12),0) -> 11562.9116 | I16: =IF(I$13<=Vehicles!$E11,H15*INDEX(H$8:H$10,$H$12),0) -> 8568.012189 | J16: =IF(J$13<=Vehicles!$E11,I15*INDEX(I$8:I$10,$H$12),0) -> 8398.899995 | K16: =IF(K$13<=Vehicles!$E11,J15*INDEX(J$8:J$10,$H$12),0) -> 7579.241922 | L16: =IF(L$13<=Vehicles!$E11,K15*INDEX(K$8:K$10,$H$12),0) -> 7251.778487 | M16: =IF(M$13<=Vehicles!$E11,L15*INDEX(L$8:L$10,$H$12),0) -> 4911.052536 | N16: =IF(N$13<=Vehicles!$E11,M15*INDEX(M$8:M$10,$H$12),0) -> 4523.90487 | O16: =IF(O$13<=Vehicles!$E11,N15*INDEX(N$8:N$10,$H$12),0) -> 3161.313555 | P16: =IF(P$13<=Vehicles!$E11,O15*INDEX(O$8:O$10,$H$12),0) -> 1284.30138 | Q16: =IF(Q$13<=Vehicles!$E11,P15*INDEX(P$8:P$10,$H$12),0) -> 1082.872691 | R16: =IF(R$13<=Vehicles!$E11,Q15*INDEX(Q$8:Q$10,$H$12),0) -> 877.9400759 | S16: =IF(S$13<=Vehicles!$E11,R15*INDEX(R$8:R$10,$H$12),0) -> 544.61166 | T16: =IF(T$13<=Vehicles!$E11,S15*INDEX(S$8:S$10,$H$12),0) -> 100.4011716 | U16: =IF(U$13<=Vehicles!$E11,T15*INDEX(T$8:T$10,$H$12),0) -> 13.41321113 | V16: =IF(V$13<=Vehicles!$E11,U15*INDEX(U$8:U$10,$H$12),0) -> 8.783924429 | W16: =IF(W$13<=Vehicles!$E11,V15*INDEX(V$8:V$10,$H$12),0) -> 5.368489408 | X16: =IF(X$13<=Vehicles!$E11,W15*INDEX(W$8:W$10,$H$12),0) -> 3.041201059 | Y16: =IF(Y$13<=Vehicles!$E11,X15*INDEX(X$8:X$10,$H$12),0) -> 1.585494528 | Z16: =IF(Z$13<=Vehicles!$E11,Y15*INDEX(Y$8:Y$10,$H$12),0) -> 0.002179057216 | AB16: 2022 | AC16: 71264.25017 | AD16: 36708.98513 | AE16: 10930.33257 | AF16: 672.5784566 | AG16: 4.628874645
B17: =Vehicles!B12 -> 2023 | C17: 129314.4657 | D17: =D16*(1+Vehicles!D12) -> 15968.36184 | E17: =IF(E$13<=Vehicles!$E12,D16*INDEX(D$8:D$10,$H$12),0) -> 15503.26392 | F17: =IF(F$13<=Vehicles!$E12,E16*INDEX(E$8:E$10,$H$12),0) -> 15035.10247 | G17: =IF(G$13<=Vehicles!$E12,F16*INDEX(F$8:F$10,$H$12),0) -> 14549.17524 | H17: =IF(H$13<=Vehicles!$E12,G16*INDEX(G$8:G$10,$H$12),0) -> 14437.68943 | I17: =IF(I$13<=Vehicles!$E12,H16*INDEX(H$8:H$10,$H$12),0) -> 11386.44151 | J17: =IF(J$13<=Vehicles!$E12,I16*INDEX(I$8:I$10,$H$12),0) -> 8334.541832 | K17: =IF(K$13<=Vehicles!$E12,J16*INDEX(J$8:J$10,$H$12),0) -> 8022.194179 | L17: =IF(L$13<=Vehicles!$E12,K16*INDEX(K$8:K$10,$H$12),0) -> 7054.174273 | M17: =IF(M$13<=Vehicles!$E12,L16*INDEX(L$8:L$10,$H$12),0) -> 6514.976347 | N17: =IF(N$13<=Vehicles!$E12,M16*INDEX(M$8:M$10,$H$12),0) -> 4210.502011 | O17: =IF(O$13<=Vehicles!$E12,N16*INDEX(N$8:N$10,$H$12),0) -> 3651.576105 | P17: =IF(P$13<=Vehicles!$E12,O16*INDEX(O$8:O$10,$H$12),0) -> 2364.624679 | Q17: =IF(Q$13<=Vehicles!$E12,P16*INDEX(P$8:P$10,$H$12),0) -> 874.0661345 | R17: =IF(R$13<=Vehicles!$E12,Q16*INDEX(Q$8:Q$10,$H$12),0) -> 656.6886626 | S17: =IF(S$13<=Vehicles!$E12,R16*INDEX(R$8:R$10,$H$12),0) -> 463.3127938 | T17: =IF(T$13<=Vehicles!$E12,S16*INDEX(S$8:S$10,$H$12),0) -> 243.5459372 | U17: =IF(U$13<=Vehicles!$E12,T16*INDEX(T$8:T$10,$H$12),0) -> 36.93552689 | V17: =IF(V$13<=Vehicles!$E12,U16*INDEX(U$8:U$10,$H$12),0) -> 3.928100083 | W17: =IF(W$13<=Vehicles!$E12,V16*INDEX(V$8:V$10,$H$12),0) -> 1.974956883 | X17: =IF(X$13<=Vehicles!$E12,W16*INDEX(W$8:W$10,$H$12),0) -> 0.890625072 | Y17: =IF(Y$13<=Vehicles!$E12,X16*INDEX(X$8:X$10,$H$12),0) -> 0.3564788561 | Z17: =IF(Z$13<=Vehicles!$E12,Y16*INDEX(Y$8:Y$10,$H$12),0) -> 0.1426945075 | AB17: 2023 | AC17: 75493.5929 | AD17: 41312.32814 | AE17: 11757.45759 | AF17: 749.6973148 | AG17: 1.389798436
B18: =Vehicles!B13 -> 2024 | C18: 138893.8422 | D18: =D17*(1+Vehicles!D13) -> 16447.41269 | E18: =IF(E$13<=Vehicles!$E13,D17*INDEX(D$8:D$10,$H$12),0) -> 15968.36184 | F18: =IF(F$13<=Vehicles!$E13,E17*INDEX(E$8:E$10,$H$12),0) -> 15486.15555 | G18: =IF(G$13<=Vehicles!$E13,F17*INDEX(F$8:F$10,$H$12),0) -> 14985.6505 | H18: =IF(H$13<=Vehicles!$E13,G17*INDEX(G$8:G$10,$H$12),0) -> 14437.68943 | I18: =IF(I$13<=Vehicles!$E13,H17*INDEX(H$8:H$10,$H$12),0) -> 14217.34523 | J18: =IF(J$13<=Vehicles!$E13,I17*INDEX(I$8:I$10,$H$12),0) -> 11076.17157 | K18: =IF(K$13<=Vehicles!$E13,J17*INDEX(J$8:J$10,$H$12),0) -> 7960.722596 | L18: =IF(L$13<=Vehicles!$E13,K17*INDEX(K$8:K$10,$H$12),0) -> 7466.440097 | M18: =IF(M$13<=Vehicles!$E13,L17*INDEX(L$8:L$10,$H$12),0) -> 6337.449306 | N18: =IF(N$13<=Vehicles!$E13,M17*INDEX(M$8:M$10,$H$12),0) -> 5585.629722 | O18: =IF(O$13<=Vehicles!$E13,N17*INDEX(N$8:N$10,$H$12),0) -> 3398.605624 | P18: =IF(P$13<=Vehicles!$E13,O17*INDEX(O$8:O$10,$H$12),0) -> 2731.335196 | Q18: =IF(Q$13<=Vehicles!$E13,P17*INDEX(P$8:P$10,$H$12),0) -> 1609.309454 | R18: =IF(R$13<=Vehicles!$E13,Q17*INDEX(Q$8:Q$10,$H$12),0) -> 530.061683 | S18: =IF(S$13<=Vehicles!$E13,R17*INDEX(R$8:R$10,$H$12),0) -> 346.5524212 | T18: =IF(T$13<=Vehicles!$E13,S17*INDEX(S$8:S$10,$H$12),0) -> 207.1897406 | U18: =IF(U$13<=Vehicles!$E13,T17*INDEX(T$8:T$10,$H$12),0) -> 89.59554326 | V18: =IF(V$13<=Vehicles!$E13,U17*INDEX(U$8:U$10,$H$12),0) -> 10.81668251 | W18: =IF(W$13<=Vehicles!$E13,V17*INDEX(V$8:V$10,$H$12),0) -> 0.8831847724 | X18: =IF(X$13<=Vehicles!$E13,W17*INDEX(W$8:W$10,$H$12),0) -> 0.3276426538 | Y18: =IF(Y$13<=Vehicles!$E13,X17*INDEX(X$8:X$10,$H$12),0) -> 0.104395928 | Z18: =IF(Z$13<=Vehicles!$E13,Y17*INDEX(Y$8:Y$10,$H$12),0) -> 0.03208309705 | AB18: 2024 | AC18: 77325.27 | AD18: 47058.12881 | AE18: 13854.94168 | AF18: 655.0375724 | AG18: 0.4641216789
B19: =Vehicles!B14 -> 2025 | C19: 148247.4742 | D19: =D18*(1+Vehicles!D14) -> 16940.83507 | E19: =IF(E$13<=Vehicles!$E14,D18*INDEX(D$8:D$10,$H$12),0) -> 16447.41269 | F19: =IF(F$13<=Vehicles!$E14,E18*INDEX(E$8:E$10,$H$12),0) -> 15950.74021 | G19: =IF(G$13<=Vehicles!$E14,F18*INDEX(F$8:F$10,$H$12),0) -> 15435.22001 | H19: =IF(H$13<=Vehicles!$E14,G18*INDEX(G$8:G$10,$H$12),0) -> 14870.82011 | I19: =IF(I$13<=Vehicles!$E14,H18*INDEX(H$8:H$10,$H$12),0) -> 14217.34523 | J19: =IF(J$13<=Vehicles!$E14,I18*INDEX(I$8:I$10,$H$12),0) -> 13829.93581 | K19: =IF(K$13<=Vehicles!$E14,J18*INDEX(J$8:J$10,$H$12),0) -> 10579.3853 | L19: =IF(L$13<=Vehicles!$E14,K18*INDEX(K$8:K$10,$H$12),0) -> 7409.227085 | M19: =IF(M$13<=Vehicles!$E14,L18*INDEX(L$8:L$10,$H$12),0) -> 6707.827703 | N19: =IF(N$13<=Vehicles!$E14,M18*INDEX(M$8:M$10,$H$12),0) -> 5433.426511 | O19: =IF(O$13<=Vehicles!$E14,N18*INDEX(N$8:N$10,$H$12),0) -> 4508.572265 | P19: =IF(P$13<=Vehicles!$E14,O18*INDEX(O$8:O$10,$H$12),0) -> 2542.116305 | Q19: =IF(Q$13<=Vehicles!$E14,P18*INDEX(P$8:P$10,$H$12),0) -> 1858.884241 | R19: =IF(R$13<=Vehicles!$E14,Q18*INDEX(Q$8:Q$10,$H$12),0) -> 975.9367672 | S19: =IF(S$13<=Vehicles!$E14,R18*INDEX(R$8:R$10,$H$12),0) -> 279.727929 | T19: =IF(T$13<=Vehicles!$E14,S18*INDEX(S$8:S$10,$H$12),0) -> 154.9754447 | U19: =IF(U$13<=Vehicles!$E14,T18*INDEX(T$8:T$10,$H$12),0) -> 76.22084599 | V19: =IF(V$13<=Vehicles!$E14,U18*INDEX(U$8:U$10,$H$12),0) -> 26.23833006 | W19: =IF(W$13<=Vehicles!$E14,V18*INDEX(V$8:V$10,$H$12),0) -> 2.431997423 | X19: =IF(X$13<=Vehicles!$E14,W18*INDEX(W$8:W$10,$H$12),0) -> 0.1465191494 | Y19: =IF(Y$13<=Vehicles!$E14,X18*INDEX(X$8:X$10,$H$12),0) -> 0.03840511566 | Z19: =IF(Z$13<=Vehicles!$E14,Y18*INDEX(Y$8:Y$10,$H$12),0) -> 0.009395633522 | AB19: 2025 | AC19: 79645.0281 | AD19: 52743.72113 | AE19: 15318.93609 | AF19: 539.5945472 | AG19: 0.1943198986
B20: =Vehicles!B15 -> 2026 | C20: 157312.9407 | D20: =D19*(1+Vehicles!D15) -> 17449.06012 | E20: =IF(E$13<=Vehicles!$E15,D19*INDEX(D$8:D$10,$H$12),0) -> 16940.83507 | F20: =IF(F$13<=Vehicles!$E15,E19*INDEX(E$8:E$10,$H$12),0) -> 16429.26242 | G20: =IF(G$13<=Vehicles!$E15,F19*INDEX(F$8:F$10,$H$12),0) -> 15898.27661 | H20: =IF(H$13<=Vehicles!$E15,G19*INDEX(G$8:G$10,$H$12),0) -> 15316.94472 | I20: =IF(I$13<=Vehicles!$E15,H19*INDEX(H$8:H$10,$H$12),0) -> 14643.86559 | J20: =IF(J$13<=Vehicles!$E15,I19*INDEX(I$8:I$10,$H$12),0) -> 13829.93581 | K20: =IF(K$13<=Vehicles!$E15,J19*INDEX(J$8:J$10,$H$12),0) -> 13209.63824 | L20: =IF(L$13<=Vehicles!$E15,K19*INDEX(K$8:K$10,$H$12),0) -> 9846.476516 | M20: =IF(M$13<=Vehicles!$E15,L19*INDEX(L$8:L$10,$H$12),0) -> 6656.427702 | N20: =IF(N$13<=Vehicles!$E15,M19*INDEX(M$8:M$10,$H$12),0) -> 5750.971268 | O20: =IF(O$13<=Vehicles!$E15,N19*INDEX(N$8:N$10,$H$12),0) -> 4385.717867 | P20: =IF(P$13<=Vehicles!$E15,O19*INDEX(O$8:O$10,$H$12),0) -> 3372.35806 | Q20: =IF(Q$13<=Vehicles!$E15,P19*INDEX(P$8:P$10,$H$12),0) -> 1730.106194 | R20: =IF(R$13<=Vehicles!$E15,Q19*INDEX(Q$8:Q$10,$H$12),0) -> 1127.286907 | S20: =IF(S$13<=Vehicles!$E15,R19*INDEX(R$8:R$10,$H$12),0) -> 515.0283062 | T20: =IF(T$13<=Vehicles!$E15,S19*INDEX(S$8:S$10,$H$12),0) -> 125.0920713 | U20: =IF(U$13<=Vehicles!$E15,T19*INDEX(T$8:T$10,$H$12),0) -> 57.01227999 | V20: =IF(V$13<=Vehicles!$E15,U19*INDEX(U$8:U$10,$H$12),0) -> 22.32150888 | W20: =IF(W$13<=Vehicles!$E15,V19*INDEX(V$8:V$10,$H$12),0) -> 5.899364343 | X20: =IF(X$13<=Vehicles!$E15,W19*INDEX(W$8:W$10,$H$12),0) -> 0.403465056 | Y20: =IF(Y$13<=Vehicles!$E15,X19*INDEX(X$8:X$10,$H$12),0) -> 0.01717445764 | Z20: =IF(Z$13<=Vehicles!$E15,Y19*INDEX(Y$8:Y$10,$H$12),0) -> 0.003456460409 | AB20: 2026 | AC20: 82034.37894 | AD20: 58186.34386 | AE20: 16366.4403 | AF20: 725.3535307 | AG20: 0.424095974
B21: =Vehicles!B16 -> 2027 | C21: 166041.3412 | D21: =D20*(1+Vehicles!D16) -> 17972.53193 | E21: =IF(E$13<=Vehicles!$E16,D20*INDEX(D$8:D$10,$H$12),0) -> 17449.06012 | F21: =IF(F$13<=Vehicles!$E16,E20*INDEX(E$8:E$10,$H$12),0) -> 16922.14029 | G21: =IF(G$13<=Vehicles!$E16,F20*INDEX(F$8:F$10,$H$12),0) -> 16375.22491 | H21: =IF(H$13<=Vehicles!$E16,G20*INDEX(G$8:G$10,$H$12),0) -> 15776.45306 | I21: =IF(I$13<=Vehicles!$E16,H20*INDEX(H$8:H$10,$H$12),0) -> 15083.18156 | J21: =IF(J$13<=Vehicles!$E16,I20*INDEX(I$8:I$10,$H$12),0) -> 14244.83388 | K21: =IF(K$13<=Vehicles!$E16,J20*INDEX(J$8:J$10,$H$12),0) -> 13209.63824 | L21: =IF(L$13<=Vehicles!$E16,K20*INDEX(K$8:K$10,$H$12),0) -> 12294.51325 | M21: =IF(M$13<=Vehicles!$E16,L20*INDEX(L$8:L$10,$H$12),0) -> 8846.045383 | N21: =IF(N$13<=Vehicles!$E16,M20*INDEX(M$8:M$10,$H$12),0) -> 5706.903361 | O21: =IF(O$13<=Vehicles!$E16,N20*INDEX(N$8:N$10,$H$12),0) -> 4642.031578 | P21: =IF(P$13<=Vehicles!$E16,O20*INDEX(O$8:O$10,$H$12),0) -> 3280.464442 | Q21: =IF(Q$13<=Vehicles!$E16,P20*INDEX(P$8:P$10,$H$12),0) -> 2295.149736 | R21: =IF(R$13<=Vehicles!$E16,Q20*INDEX(Q$8:Q$10,$H$12),0) -> 1049.191777 | S21: =IF(S$13<=Vehicles!$E16,R20*INDEX(R$8:R$10,$H$12),0) -> 594.8998807 | T21: =IF(T$13<=Vehicles!$E16,S20*INDEX(S$8:S$10,$H$12),0) -> 230.3165002 | U21: =IF(U$13<=Vehicles!$E16,T20*INDEX(T$8:T$10,$H$12),0) -> 46.0188013 | V21: =IF(V$13<=Vehicles!$E16,U20*INDEX(U$8:U$10,$H$12),0) -> 16.69622132 | W21: =IF(W$13<=Vehicles!$E16,V20*INDEX(V$8:V$10,$H$12),0) -> 5.018715492 | X21: =IF(X$13<=Vehicles!$E16,W20*INDEX(W$8:W$10,$H$12),0) -> 0.9786964997 | Y21: =IF(Y$13<=Vehicles!$E16,X20*INDEX(X$8:X$10,$H$12),0) -> 0.04729275008 | Z21: =IF(Z$13<=Vehicles!$E16,Y20*INDEX(Y$8:Y$10,$H$12),0) -> 0.001545701188 | AB21: 2027 | AC21: 84495.41031 | AD21: 63678.21231 | AE21: 16973.74089 | AF21: 892.9501189 | AG21: 1.027534951
B22: =Vehicles!B17 -> 2028 | C22: 174393.8394 | D22: =D21*(1+Vehicles!D17) -> 18511.70789 | E22: =IF(E$13<=Vehicles!$E17,D21*INDEX(D$8:D$10,$H$12),0) -> 17972.53193 | F22: =IF(F$13<=Vehicles!$E17,E21*INDEX(E$8:E$10,$H$12),0) -> 17429.8045 | G22: =IF(G$13<=Vehicles!$E17,F21*INDEX(F$8:F$10,$H$12),0) -> 16866.48166 | H22: =IF(H$13<=Vehicles!$E17,G21*INDEX(G$8:G$10,$H$12),0) -> 16249.74665 | I22: =IF(I$13<=Vehicles!$E17,H21*INDEX(H$8:H$10,$H$12),0) -> 15535.677 | J22: =IF(J$13<=Vehicles!$E17,I21*INDEX(I$8:I$10,$H$12),0) -> 14672.1789 | K22: =IF(K$13<=Vehicles!$E17,J21*INDEX(J$8:J$10,$H$12),0) -> 13605.92739 | L22: =IF(L$13<=Vehicles!$E17,K21*INDEX(K$8:K$10,$H$12),0) -> 12294.51325 | M22: =IF(M$13<=Vehicles!$E17,L21*INDEX(L$8:L$10,$H$12),0) -> 11045.35434 | N22: =IF(N$13<=Vehicles!$E17,M21*INDEX(M$8:M$10,$H$12),0) -> 7584.177037 | O22: =IF(O$13<=Vehicles!$E17,N21*INDEX(N$8:N$10,$H$12),0) -> 4606.461132 | P22: =IF(P$13<=Vehicles!$E17,O21*INDEX(O$8:O$10,$H$12),0) -> 3472.184028 | Q22: =IF(Q$13<=Vehicles!$E17,P21*INDEX(P$8:P$10,$H$12),0) -> 2232.609042 | R22: =IF(R$13<=Vehicles!$E17,Q21*INDEX(Q$8:Q$10,$H$12),0) -> 1391.852268 | S22: =IF(S$13<=Vehicles!$E17,R21*INDEX(R$8:R$10,$H$12),0) -> 553.6869619 | T22: =IF(T$13<=Vehicles!$E17,S21*INDEX(S$8:S$10,$H$12),0) -> 266.0344234 | U22: =IF(U$13<=Vehicles!$E17,T21*INDEX(T$8:T$10,$H$12),0) -> 84.72870538 | V22: =IF(V$13<=Vehicles!$E17,U21*INDEX(U$8:U$10,$H$12),0) -> 13.47674732 | W22: =IF(W$13<=Vehicles!$E17,V21*INDEX(V$8:V$10,$H$12),0) -> 3.753939085 | X22: =IF(X$13<=Vehicles!$E17,W21*INDEX(W$8:W$10,$H$12),0) -> 0.8325980563 | Y22: =IF(Y$13<=Vehicles!$E17,X21*INDEX(X$8:X$10,$H$12),0) -> 0.11471935 | Z22: =IF(Z$13<=Vehicles!$E17,Y21*INDEX(Y$8:Y$10,$H$12),0) -> 0.004256347507 | AB22: 2028 | AC22: 87030.27262 | AD22: 67153.65088 | AE22: 19287.28351 | AF22: 921.6807771 | AG22: 0.9515737538
B23: =Vehicles!B18 -> 2029 | C23: 182340.7441 | D23: =D22*(1+Vehicles!D18) -> 19067.05912 | E23: =IF(E$13<=Vehicles!$E18,D22*INDEX(D$8:D$10,$H$12),0) -> 18511.70789 | F23: =IF(F$13<=Vehicles!$E18,E22*INDEX(E$8:E$10,$H$12),0) -> 17952.69864 | G23: =IF(G$13<=Vehicles!$E18,F22*INDEX(F$8:F$10,$H$12),0) -> 17372.47611 | H23: =IF(H$13<=Vehicles!$E18,G22*INDEX(G$8:G$10,$H$12),0) -> 16737.23905 | I23: =IF(I$13<=Vehicles!$E18,H22*INDEX(H$8:H$10,$H$12),0) -> 16001.74731 | J23: =IF(J$13<=Vehicles!$E18,I22*INDEX(I$8:I$10,$H$12),0) -> 15112.34427 | K23: =IF(K$13<=Vehicles!$E18,J22*INDEX(J$8:J$10,$H$12),0) -> 14014.10521 | L23: =IF(L$13<=Vehicles!$E18,K22*INDEX(K$8:K$10,$H$12),0) -> 12663.34865 | M23: =IF(M$13<=Vehicles!$E18,L22*INDEX(L$8:L$10,$H$12),0) -> 11045.35434 | N23: =IF(N$13<=Vehicles!$E18,M22*INDEX(M$8:M$10,$H$12),0) -> 9469.759555 | O23: =IF(O$13<=Vehicles!$E18,N22*INDEX(N$8:N$10,$H$12),0) -> 6121.746686 | P23: =IF(P$13<=Vehicles!$E18,O22*INDEX(O$8:O$10,$H$12),0) -> 3445.57776 | Q23: =IF(Q$13<=Vehicles!$E18,P22*INDEX(P$8:P$10,$H$12),0) -> 2363.089006 | R23: =IF(R$13<=Vehicles!$E18,Q22*INDEX(Q$8:Q$10,$H$12),0) -> 1353.925589 | S23: =IF(S$13<=Vehicles!$E18,R22*INDEX(R$8:R$10,$H$12),0) -> 734.5181984 | T23: =IF(T$13<=Vehicles!$E18,S22*INDEX(S$8:S$10,$H$12),0) -> 247.6043389 | U23: =IF(U$13<=Vehicles!$E18,T22*INDEX(T$8:T$10,$H$12),0) -> 97.86859501 | V23: =IF(V$13<=Vehicles!$E18,U22*INDEX(U$8:U$10,$H$12),0) -> 24.81306164 | W23: =IF(W$13<=Vehicles!$E18,V22*INDEX(V$8:V$10,$H$12),0) -> 3.030080131 | X23: =IF(X$13<=Vehicles!$E18,W22*INDEX(W$8:W$10,$H$12),0) -> 0.622773375 | Y23: =IF(Y$13<=Vehicles!$E18,X22*INDEX(X$8:X$10,$H$12),0) -> 0.09759420601 | Z23: =IF(Z$13<=Vehicles!$E18,Y22*INDEX(Y$8:Y$10,$H$12),0) -> 0.0103247415 | AB23: 2029 | AC23: 89641.1808 | AD23: 68836.89978 | AE23: 22754.0986 | AF23: 1107.834274 | AG23: 0.7306923225
B24: =Vehicles!B19 -> 2030 | C24: 189871.8358 | D24: =D23*(1+Vehicles!D19) -> 19639.0709 | E24: =IF(E$13<=Vehicles!$E19,D23*INDEX(D$8:D$10,$H$12),0) -> 19067.05912 | F24: =IF(F$13<=Vehicles!$E19,E23*INDEX(E$8:E$10,$H$12),0) -> 18491.2796 | G24: =IF(G$13<=Vehicles!$E19,F23*INDEX(F$8:F$10,$H$12),0) -> 17893.65039 | H24: =IF(H$13<=Vehicles!$E19,G23*INDEX(G$8:G$10,$H$12),0) -> 17239.35622 | I24: =IF(I$13<=Vehicles!$E19,H23*INDEX(H$8:H$10,$H$12),0) -> 16481.79973 | J24: =IF(J$13<=Vehicles!$E19,I23*INDEX(I$8:I$10,$H$12),0) -> 15565.71459 | K24: =IF(K$13<=Vehicles!$E19,J23*INDEX(J$8:J$10,$H$12),0) -> 14434.52836 | L24: =IF(L$13<=Vehicles!$E19,K23*INDEX(K$8:K$10,$H$12),0) -> 13043.24911 | M24: =IF(M$13<=Vehicles!$E19,L23*INDEX(L$8:L$10,$H$12),0) -> 11376.71497 | N24: =IF(N$13<=Vehicles!$E19,M23*INDEX(M$8:M$10,$H$12),0) -> 9469.759555 | O24: =IF(O$13<=Vehicles!$E19,N23*INDEX(N$8:N$10,$H$12),0) -> 7643.738917 | P24: =IF(P$13<=Vehicles!$E19,O23*INDEX(O$8:O$10,$H$12),0) -> 4578.993208 | Q24: =IF(Q$13<=Vehicles!$E19,P23*INDEX(P$8:P$10,$H$12),0) -> 2344.981388 | R24: =IF(R$13<=Vehicles!$E19,Q23*INDEX(Q$8:Q$10,$H$12),0) -> 1433.052816 | S24: =IF(S$13<=Vehicles!$E19,R23*INDEX(R$8:R$10,$H$12),0) -> 714.5032612 | T24: =IF(T$13<=Vehicles!$E19,S23*INDEX(S$8:S$10,$H$12),0) -> 328.4706078 | U24: =IF(U$13<=Vehicles!$E19,T23*INDEX(T$8:T$10,$H$12),0) -> 91.08854582 | V24: =IF(V$13<=Vehicles!$E19,U23*INDEX(U$8:U$10,$H$12),0) -> 28.66111868 | W24: =IF(W$13<=Vehicles!$E19,V23*INDEX(V$8:V$10,$H$12),0) -> 5.578910346 | X24: =IF(X$13<=Vehicles!$E19,W23*INDEX(W$8:W$10,$H$12),0) -> 0.5026861617 | Y24: =IF(Y$13<=Vehicles!$E19,X23*INDEX(X$8:X$10,$H$12),0) -> 0.07299929732 | Z24: =IF(Z$13<=Vehicles!$E19,Y23*INDEX(Y$8:Y$10,$H$12),0) -> 0.008783478541 | AB24: 2030 | AC24: 92330.41622 | AD24: 70902.00677 | AE24: 25470.52588 | AF24: 1168.302444 | AG24: 0.5844689376
B25: =Vehicles!B20 -> 2031 | C25: 197013.5711 | D25: =D24*(1+Vehicles!D20) -> 20228.24302 | E25: =IF(E$13<=Vehicles!$E20,D24*INDEX(D$8:D$10,$H$12),0) -> 19639.0709 | F25: =IF(F$13<=Vehicles!$E20,E24*INDEX(E$8:E$10,$H$12),0) -> 19046.01798 | G25: =IF(G$13<=Vehicles!$E20,F24*INDEX(F$8:F$10,$H$12),0) -> 18430.4599 | H25: =IF(H$13<=Vehicles!$E20,G24*INDEX(G$8:G$10,$H$12),0) -> 17756.53691 | I25: =IF(I$13<=Vehicles!$E20,H24*INDEX(H$8:H$10,$H$12),0) -> 16976.25373 | J25: =IF(J$13<=Vehicles!$E20,I24*INDEX(I$8:I$10,$H$12),0) -> 16032.68603 | K25: =IF(K$13<=Vehicles!$E20,J24*INDEX(J$8:J$10,$H$12),0) -> 14867.56421 | L25: =IF(L$13<=Vehicles!$E20,K24*INDEX(K$8:K$10,$H$12),0) -> 13434.54658 | M25: =IF(M$13<=Vehicles!$E20,L24*INDEX(L$8:L$10,$H$12),0) -> 11718.01642 | N25: =IF(N$13<=Vehicles!$E20,M24*INDEX(M$8:M$10,$H$12),0) -> 9753.852342 | O25: =IF(O$13<=Vehicles!$E20,N24*INDEX(N$8:N$10,$H$12),0) -> 7643.738917 | P25: =IF(P$13<=Vehicles!$E20,O24*INDEX(O$8:O$10,$H$12),0) -> 5717.42517 | Q25: =IF(Q$13<=Vehicles!$E20,P24*INDEX(P$8:P$10,$H$12),0) -> 3116.35801 | R25: =IF(R$13<=Vehicles!$E20,Q24*INDEX(Q$8:Q$10,$H$12),0) -> 1422.071777 | S25: =IF(S$13<=Vehicles!$E20,R24*INDEX(R$8:R$10,$H$12),0) -> 756.2608453 | T25: =IF(T$13<=Vehicles!$E20,S24*INDEX(S$8:S$10,$H$12),0) -> 319.5200895 | U25: =IF(U$13<=Vehicles!$E20,T24*INDEX(T$8:T$10,$H$12),0) -> 120.8375836 | V25: =IF(V$13<=Vehicles!$E20,U24*INDEX(U$8:U$10,$H$12),0) -> 26.67556045 | W25: =IF(W$13<=Vehicles!$E20,V24*INDEX(V$8:V$10,$H$12),0) -> 6.44409843 | X25: =IF(X$13<=Vehicles!$E20,W24*INDEX(W$8:W$10,$H$12),0) -> 0.9255336187 | Y25: =IF(Y$13<=Vehicles!$E20,X24*INDEX(X$8:X$10,$H$12),0) -> 0.05892309795 | Z25: =IF(Z$13<=Vehicles!$E20,Y24*INDEX(Y$8:Y$10,$H$12),0) -> 0.006569936759 | AB25: 2031 | AC25: 95100.32871 | AD25: 73029.06698 | AE25: 27653.44622 | AF25: 1229.738177 | AG25: 0.9910266534
B26: =Vehicles!B21 -> 2032 | C26: 203840.0024 | D26: =D25*(1+Vehicles!D21) -> 20835.09031 | E26: =IF(E$13<=Vehicles!$E21,D25*INDEX(D$8:D$10,$H$12),0) -> 20228.24302 | F26: =IF(F$13<=Vehicles!$E21,E25*INDEX(E$8:E$10,$H$12),0) -> 19617.39852 | G26: =IF(G$13<=Vehicles!$E21,F25*INDEX(F$8:F$10,$H$12),0) -> 18983.3737 | H26: =IF(H$13<=Vehicles!$E21,G25*INDEX(G$8:G$10,$H$12),0) -> 18289.23301 | I26: =IF(I$13<=Vehicles!$E21,H25*INDEX(H$8:H$10,$H$12),0) -> 17485.54134 | J26: =IF(J$13<=Vehicles!$E21,I25*INDEX(I$8:I$10,$H$12),0) -> 16513.66661 | K26: =IF(K$13<=Vehicles!$E21,J25*INDEX(J$8:J$10,$H$12),0) -> 15313.59114 | L26: =IF(L$13<=Vehicles!$E21,K25*INDEX(K$8:K$10,$H$12),0) -> 13837.58298 | M26: =IF(M$13<=Vehicles!$E21,L25*INDEX(L$8:L$10,$H$12),0) -> 12069.55692 | N26: =IF(N$13<=Vehicles!$E21,M25*INDEX(M$8:M$10,$H$12),0) -> 10046.46791 | O26: =IF(O$13<=Vehicles!$E21,N25*INDEX(N$8:N$10,$H$12),0) -> 7873.051085 | P26: =IF(P$13<=Vehicles!$E21,O25*INDEX(O$8:O$10,$H$12),0) -> 5717.42517 | Q26: =IF(Q$13<=Vehicles!$E21,P25*INDEX(P$8:P$10,$H$12),0) -> 3891.148755 | R26: =IF(R$13<=Vehicles!$E21,Q25*INDEX(Q$8:Q$10,$H$12),0) -> 1889.859252 | S26: =IF(S$13<=Vehicles!$E21,R25*INDEX(R$8:R$10,$H$12),0) -> 750.4658533 | T26: =IF(T$13<=Vehicles!$E21,S25*INDEX(S$8:S$10,$H$12),0) -> 338.1937439 | U26: =IF(U$13<=Vehicles!$E21,T25*INDEX(T$8:T$10,$H$12),0) -> 117.544872 | V26: =IF(V$13<=Vehicles!$E21,U25*INDEX(U$8:U$10,$H$12),0) -> 35.38765755 | W26: =IF(W$13<=Vehicles!$E21,V25*INDEX(V$8:V$10,$H$12),0) -> 5.997670193 | X26: =IF(X$13<=Vehicles!$E21,W25*INDEX(W$8:W$10,$H$12),0) -> 1.069067142 | Y26: =IF(Y$13<=Vehicles!$E21,X25*INDEX(X$8:X$10,$H$12),0) -> 0.1084877847 | Z26: =IF(Z$13<=Vehicles!$E21,Y25*INDEX(Y$8:Y$10,$H$12),0) -> 0.005303078816 | AB26: 2032 | AC26: 97953.33857 | AD26: 75219.93899 | AE26: 29417.95217 | AF26: 1247.589797 | AG26: 1.182858005
B27: =Vehicles!B22 -> 2033 | C27: 210466.251 | D27: =D26*(1+Vehicles!D22) -> 21460.14302 | E27: =IF(E$13<=Vehicles!$E22,D26*INDEX(D$8:D$10,$H$12),0) -> 20835.09031 | F27: =IF(F$13<=Vehicles!$E22,E26*INDEX(E$8:E$10,$H$12),0) -> 20205.92048 | G27: =IF(G$13<=Vehicles!$E22,F26*INDEX(F$8:F$10,$H$12),0) -> 19552.87491 | H27: =IF(H$13<=Vehicles!$E22,G26*INDEX(G$8:G$10,$H$12),0) -> 18837.91 | I27: =IF(I$13<=Vehicles!$E22,H26*INDEX(H$8:H$10,$H$12),0) -> 18010.10758 | J27: =IF(J$13<=Vehicles!$E22,I26*INDEX(I$8:I$10,$H$12),0) -> 17009.07661 | K27: =IF(K$13<=Vehicles!$E22,J26*INDEX(J$8:J$10,$H$12),0) -> 15772.99888 | L27: =IF(L$13<=Vehicles!$E22,K26*INDEX(K$8:K$10,$H$12),0) -> 14252.71047 | M27: =IF(M$13<=Vehicles!$E22,L26*INDEX(L$8:L$10,$H$12),0) -> 12431.64362 | N27: =IF(N$13<=Vehicles!$E22,M26*INDEX(M$8:M$10,$H$12),0) -> 10347.86195 | O27: =IF(O$13<=Vehicles!$E22,N26*INDEX(N$8:N$10,$H$12),0) -> 8109.242617 | P27: =IF(P$13<=Vehicles!$E22,O26*INDEX(O$8:O$10,$H$12),0) -> 5888.947925 | Q27: =IF(Q$13<=Vehicles!$E22,P26*INDEX(P$8:P$10,$H$12),0) -> 3891.148755 | R27: =IF(R$13<=Vehicles!$E22,Q26*INDEX(Q$8:Q$10,$H$12),0) -> 2359.717162 | S27: =IF(S$13<=Vehicles!$E22,R26*INDEX(R$8:R$10,$H$12),0) -> 997.3299934 | T27: =IF(T$13<=Vehicles!$E22,S26*INDEX(S$8:S$10,$H$12),0) -> 335.6022703 | U27: =IF(U$13<=Vehicles!$E22,T26*INDEX(T$8:T$10,$H$12),0) -> 124.4145255 | V27: =IF(V$13<=Vehicles!$E22,U26*INDEX(U$8:U$10,$H$12),0) -> 34.42337682 | W27: =IF(W$13<=Vehicles!$E22,V26*INDEX(V$8:V$10,$H$12),0) -> 7.95647759 | X27: =IF(X$13<=Vehicles!$E22,W26*INDEX(W$8:W$10,$H$12),0) -> 0.9950053062 | Y27: =IF(Y$13<=Vehicles!$E22,X26*INDEX(X$8:X$10,$H$12),0) -> 0.1253122778 | Z27: =IF(Z$13<=Vehicles!$E22,Y26*INDEX(Y$8:Y$10,$H$12),0) -> 0.009763900621 | AB27: 2033 | AC27: 100891.9387 | AD27: 77476.53716 | AE27: 30596.91841 | AF27: 1499.726644 | AG27: 1.130081485
B28: =Vehicles!B23 -> 2034 | C28: 217023.9332 | D28: =D27*(1+Vehicles!D23) -> 22103.94731 | E28: =IF(E$13<=Vehicles!$E23,D27*INDEX(D$8:D$10,$H$12),0) -> 21460.14302 | F28: =IF(F$13<=Vehicles!$E23,E27*INDEX(E$8:E$10,$H$12),0) -> 20812.09809 | G28: =IF(G$13<=Vehicles!$E23,F27*INDEX(F$8:F$10,$H$12),0) -> 20139.46116 | H28: =IF(H$13<=Vehicles!$E23,G27*INDEX(G$8:G$10,$H$12),0) -> 19403.0473 | I28: =IF(I$13<=Vehicles!$E23,H27*INDEX(H$8:H$10,$H$12),0) -> 18550.41081 | J28: =IF(J$13<=Vehicles!$E23,I27*INDEX(I$8:I$10,$H$12),0) -> 17519.34891 | K28: =IF(K$13<=Vehicles!$E23,J27*INDEX(J$8:J$10,$H$12),0) -> 16246.18884 | L28: =IF(L$13<=Vehicles!$E23,K27*INDEX(K$8:K$10,$H$12),0) -> 14680.29178 | M28: =IF(M$13<=Vehicles!$E23,L27*INDEX(L$8:L$10,$H$12),0) -> 12804.59293 | N28: =IF(N$13<=Vehicles!$E23,M27*INDEX(M$8:M$10,$H$12),0) -> 10658.29781 | O28: =IF(O$13<=Vehicles!$E23,N27*INDEX(N$8:N$10,$H$12),0) -> 8352.519896 | P28: =IF(P$13<=Vehicles!$E23,O27*INDEX(O$8:O$10,$H$12),0) -> 6065.616362 | Q28: =IF(Q$13<=Vehicles!$E23,P27*INDEX(P$8:P$10,$H$12),0) -> 4007.883218 | R28: =IF(R$13<=Vehicles!$E23,Q27*INDEX(Q$8:Q$10,$H$12),0) -> 2359.717162 | S28: =IF(S$13<=Vehicles!$E23,R27*INDEX(R$8:R$10,$H$12),0) -> 1245.286758 | T28: =IF(T$13<=Vehicles!$E23,S27*INDEX(S$8:S$10,$H$12),0) -> 445.9979206 | U28: =IF(U$13<=Vehicles!$E23,T27*INDEX(T$8:T$10,$H$12),0) -> 123.4611757 | V28: =IF(V$13<=Vehicles!$E23,U27*INDEX(U$8:U$10,$H$12),0) -> 36.43517597 | W28: =IF(W$13<=Vehicles!$E23,V27*INDEX(V$8:V$10,$H$12),0) -> 7.739670982 | X28: =IF(X$13<=Vehicles!$E23,W27*INDEX(W$8:W$10,$H$12),0) -> 1.319968782 | Y28: =IF(Y$13<=Vehicles!$E23,X27*INDEX(X$8:X$10,$H$12),0) -> 0.1166310107 | Z28: =IF(Z$13<=Vehicles!$E23,Y27*INDEX(Y$8:Y$10,$H$12),0) -> 0.011278105 | AB28: 2034 | AC28: 103918.6969 | AD28: 79800.83327 | AE28: 31444.03445 | AF28: 1858.920701 | AG28: 1.447877898
B29: =Vehicles!B24 -> 2035 | C29: 223630.5112 | D29: =D28*(1+Vehicles!D24) -> 22767.06573 | E29: =IF(E$13<=Vehicles!$E24,D28*INDEX(D$8:D$10,$H$12),0) -> 22103.94731 | F29: =IF(F$13<=Vehicles!$E24,E28*INDEX(E$8:E$10,$H$12),0) -> 21436.46104 | G29: =IF(G$13<=Vehicles!$E24,F28*INDEX(F$8:F$10,$H$12),0) -> 20743.64499 | H29: =IF(H$13<=Vehicles!$E24,G28*INDEX(G$8:G$10,$H$12),0) -> 19985.13872 | I29: =IF(I$13<=Vehicles!$E24,H28*INDEX(H$8:H$10,$H$12),0) -> 19106.92313 | J29: =IF(J$13<=Vehicles!$E24,I28*INDEX(I$8:I$10,$H$12),0) -> 18044.92938 | K29: =IF(K$13<=Vehicles!$E24,J28*INDEX(J$8:J$10,$H$12),0) -> 16733.57451 | L29: =IF(L$13<=Vehicles!$E24,K28*INDEX(K$8:K$10,$H$12),0) -> 15120.70053 | M29: =IF(M$13<=Vehicles!$E24,L28*INDEX(L$8:L$10,$H$12),0) -> 13188.73072 | N29: =IF(N$13<=Vehicles!$E24,M28*INDEX(M$8:M$10,$H$12),0) -> 10978.04674 | O29: =IF(O$13<=Vehicles!$E24,N28*INDEX(N$8:N$10,$H$12),0) -> 8603.095493 | P29: =IF(P$13<=Vehicles!$E24,O28*INDEX(O$8:O$10,$H$12),0) -> 6247.584853 | Q29: =IF(Q$13<=Vehicles!$E24,P28*INDEX(P$8:P$10,$H$12),0) -> 4128.119714 | R29: =IF(R$13<=Vehicles!$E24,Q28*INDEX(Q$8:Q$10,$H$12),0) -> 2430.508676 | S29: =IF(S$13<=Vehicles!$E24,R28*INDEX(R$8:R$10,$H$12),0) -> 1245.286758 | T29: =IF(T$13<=Vehicles!$E24,S28*INDEX(S$8:S$10,$H$12),0) -> 556.8821837 | U29: =IF(U$13<=Vehicles!$E24,T28*INDEX(T$8:T$10,$H$12),0) -> 164.0734658 | V29: =IF(V$13<=Vehicles!$E24,U28*INDEX(U$8:U$10,$H$12),0) -> 36.15598453 | W29: =IF(W$13<=Vehicles!$E24,V28*INDEX(V$8:V$10,$H$12),0) -> 8.191999165 | X29: =IF(X$13<=Vehicles!$E24,W28*INDEX(W$8:W$10,$H$12),0) -> 1.284000862 | Y29: =IF(Y$13<=Vehicles!$E24,X28*INDEX(X$8:X$10,$H$12),0) -> 0.1547220826 | Z29: =IF(Z$13<=Vehicles!$E24,Y28*INDEX(Y$8:Y$10,$H$12),0) -> 0.01049679097 | AB29: 2035 | AC29: 107036.2578 | AD29: 82194.85827 | AE29: 32387.35548 | AF29: 2010.590391 | AG29: 1.449219735
B30: =Vehicles!B25 -> 2036 | C30: 230369.1209 | D30: =D29*(1+Vehicles!D25) -> 23450.0777 | E30: =IF(E$13<=Vehicles!$E25,D29*INDEX(D$8:D$10,$H$12),0) -> 22767.06573 | F30: =IF(F$13<=Vehicles!$E25,E29*INDEX(E$8:E$10,$H$12),0) -> 22079.55487 | G30: =IF(G$13<=Vehicles!$E25,F29*INDEX(F$8:F$10,$H$12),0) -> 21365.95434 | H30: =IF(H$13<=Vehicles!$E25,G29*INDEX(G$8:G$10,$H$12),0) -> 20584.69288 | I30: =IF(I$13<=Vehicles!$E25,H29*INDEX(H$8:H$10,$H$12),0) -> 19680.13082 | J30: =IF(J$13<=Vehicles!$E25,I29*INDEX(I$8:I$10,$H$12),0) -> 18586.27726 | K30: =IF(K$13<=Vehicles!$E25,J29*INDEX(J$8:J$10,$H$12),0) -> 17235.58174 | L30: =IF(L$13<=Vehicles!$E25,K29*INDEX(K$8:K$10,$H$12),0) -> 15574.32155 | M30: =IF(M$13<=Vehicles!$E25,L29*INDEX(L$8:L$10,$H$12),0) -> 13584.39264 | N30: =IF(N$13<=Vehicles!$E25,M29*INDEX(M$8:M$10,$H$12),0) -> 11307.38814 | O30: =IF(O$13<=Vehicles!$E25,N29*INDEX(N$8:N$10,$H$12),0) -> 8861.188357 | P30: =IF(P$13<=Vehicles!$E25,O29*INDEX(O$8:O$10,$H$12),0) -> 6435.012399 | Q30: =IF(Q$13<=Vehicles!$E25,P29*INDEX(P$8:P$10,$H$12),0) -> 4251.963306 | R30: =IF(R$13<=Vehicles!$E25,Q29*INDEX(Q$8:Q$10,$H$12),0) -> 2503.423937 | S30: =IF(S$13<=Vehicles!$E25,R29*INDEX(R$8:R$10,$H$12),0) -> 1282.645361 | T30: =IF(T$13<=Vehicles!$E25,S29*INDEX(S$8:S$10,$H$12),0) -> 556.8821837 | U30: =IF(U$13<=Vehicles!$E25,T29*INDEX(T$8:T$10,$H$12),0) -> 204.8655065 | V30: =IF(V$13<=Vehicles!$E25,U29*INDEX(U$8:U$10,$H$12),0) -> 48.04941845 | W30: =IF(W$13<=Vehicles!$E25,V29*INDEX(V$8:V$10,$H$12),0) -> 8.129226419 | X30: =IF(X$13<=Vehicles!$E25,W29*INDEX(W$8:W$10,$H$12),0) -> 1.35904149 | Y30: =IF(Y$13<=Vehicles!$E25,X29*INDEX(X$8:X$10,$H$12),0) -> 0.1505060499 | Z30: =IF(Z$13<=Vehicles!$E25,Y29*INDEX(Y$8:Y$10,$H$12),0) -> 0.01392498744 | AB30: 2036 | AC30: 110247.3455 | AD30: 84660.70402 | AE30: 33358.97614 | AF30: 2100.571696 | AG30: 1.523472528
B31: =Vehicles!B26 -> 2037 | C31: 237286.9356 | D31: =D30*(1+Vehicles!D26) -> 24153.58004 | E31: =IF(E$13<=Vehicles!$E26,D30*INDEX(D$8:D$10,$H$12),0) -> 23450.0777 | F31: =IF(F$13<=Vehicles!$E26,E30*INDEX(E$8:E$10,$H$12),0) -> 22741.94151 | G31: =IF(G$13<=Vehicles!$E26,F30*INDEX(F$8:F$10,$H$12),0) -> 22006.93297 | H31: =IF(H$13<=Vehicles!$E26,G30*INDEX(G$8:G$10,$H$12),0) -> 21202.23367 | I31: =IF(I$13<=Vehicles!$E26,H30*INDEX(H$8:H$10,$H$12),0) -> 20270.53475 | J31: =IF(J$13<=Vehicles!$E26,I30*INDEX(I$8:I$10,$H$12),0) -> 19143.86558 | K31: =IF(K$13<=Vehicles!$E26,J30*INDEX(J$8:J$10,$H$12),0) -> 17752.64919 | L31: =IF(L$13<=Vehicles!$E26,K30*INDEX(K$8:K$10,$H$12),0) -> 16041.5512 | M31: =IF(M$13<=Vehicles!$E26,L30*INDEX(L$8:L$10,$H$12),0) -> 13991.92442 | N31: =IF(N$13<=Vehicles!$E26,M30*INDEX(M$8:M$10,$H$12),0) -> 11646.60979 | O31: =IF(O$13<=Vehicles!$E26,N30*INDEX(N$8:N$10,$H$12),0) -> 9127.024008 | P31: =IF(P$13<=Vehicles!$E26,O30*INDEX(O$8:O$10,$H$12),0) -> 6628.062771 | Q31: =IF(Q$13<=Vehicles!$E26,P30*INDEX(P$8:P$10,$H$12),0) -> 4379.522205 | R31: =IF(R$13<=Vehicles!$E26,Q30*INDEX(Q$8:Q$10,$H$12),0) -> 2578.526655 | S31: =IF(S$13<=Vehicles!$E26,R30*INDEX(R$8:R$10,$H$12),0) -> 1321.124722 | T31: =IF(T$13<=Vehicles!$E26,S30*INDEX(S$8:S$10,$H$12),0) -> 573.5886492 | U31: =IF(U$13<=Vehicles!$E26,T30*INDEX(T$8:T$10,$H$12),0) -> 204.8655065 | V31: =IF(V$13<=Vehicles!$E26,U30*INDEX(U$8:U$10,$H$12),0) -> 59.99549288 | W31: =IF(W$13<=Vehicles!$E26,V30*INDEX(V$8:V$10,$H$12),0) -> 10.80331809 | X31: =IF(X$13<=Vehicles!$E26,W30*INDEX(W$8:W$10,$H$12),0) -> 1.348627577 | Y31: =IF(Y$13<=Vehicles!$E26,X30*INDEX(X$8:X$10,$H$12),0) -> 0.1593020476 | Z31: =IF(Z$13<=Vehicles!$E26,Y30*INDEX(Y$8:Y$10,$H$12),0) -> 0.01354554449 | AB31: 2037 | AC31: 113554.7659 | AD31: 87200.52514 | AE31: 34359.74543 | AF31: 2170.377688 | AG31: 1.52147517
B32: =Vehicles!B27 -> 2038 | C32: 244406.5032 | D32: =D31*(1+Vehicles!D27) -> 24878.18744 | E32: =IF(E$13<=Vehicles!$E27,D31*INDEX(D$8:D$10,$H$12),0) -> 24153.58004 | F32: =IF(F$13<=Vehicles!$E27,E31*INDEX(E$8:E$10,$H$12),0) -> 23424.19976 | G32: =IF(G$13<=Vehicles!$E27,F31*INDEX(F$8:F$10,$H$12),0) -> 22667.14096 | H32: =IF(H$13<=Vehicles!$E27,G31*INDEX(G$8:G$10,$H$12),0) -> 21838.30068 | I32: =IF(I$13<=Vehicles!$E27,H31*INDEX(H$8:H$10,$H$12),0) -> 20878.65079 | J32: =IF(J$13<=Vehicles!$E27,I31*INDEX(I$8:I$10,$H$12),0) -> 19718.18154 | K32: =IF(K$13<=Vehicles!$E27,J31*INDEX(J$8:J$10,$H$12),0) -> 18285.22867 | L32: =IF(L$13<=Vehicles!$E27,K31*INDEX(K$8:K$10,$H$12),0) -> 16522.79773 | M32: =IF(M$13<=Vehicles!$E27,L31*INDEX(L$8:L$10,$H$12),0) -> 14411.68215 | N32: =IF(N$13<=Vehicles!$E27,M31*INDEX(M$8:M$10,$H$12),0) -> 11996.00808 | O32: =IF(O$13<=Vehicles!$E27,N31*INDEX(N$8:N$10,$H$12),0) -> 9400.834728 | P32: =IF(P$13<=Vehicles!$E27,O31*INDEX(O$8:O$10,$H$12),0) -> 6826.904654 | Q32: =IF(Q$13<=Vehicles!$E27,P31*INDEX(P$8:P$10,$H$12),0) -> 4510.907871 | R32: =IF(R$13<=Vehicles!$E27,Q31*INDEX(Q$8:Q$10,$H$12),0) -> 2655.882454 | S32: =IF(S$13<=Vehicles!$E27,R31*INDEX(R$8:R$10,$H$12),0) -> 1360.758463 | T32: =IF(T$13<=Vehicles!$E27,S31*INDEX(S$8:S$10,$H$12),0) -> 590.7963087 | U32: =IF(U$13<=Vehicles!$E27,T31*INDEX(T$8:T$10,$H$12),0) -> 211.0114717 | V32: =IF(V$13<=Vehicles!$E27,U31*INDEX(U$8:U$10,$H$12),0) -> 59.99549288 | W32: =IF(W$13<=Vehicles!$E27,V31*INDEX(V$8:V$10,$H$12),0) -> 13.48924534 | X32: =IF(X$13<=Vehicles!$E27,W31*INDEX(W$8:W$10,$H$12),0) -> 1.79225574 | Y32: =IF(Y$13<=Vehicles!$E27,X31*INDEX(X$8:X$10,$H$12),0) -> 0.1580813655 | Z32: =IF(Z$13<=Vehicles!$E27,Y31*INDEX(Y$8:Y$10,$H$12),0) -> 0.01433718428 | AB32: 2038 | AC32: 116961.4089 | AD32: 89816.54089 | AE32: 35390.53779 | AF32: 2236.050982 | AG32: 1.964674289
B33: =Vehicles!B28 -> 2039 | C33: 251738.7322 | D33: =D32*(1+Vehicles!D28) -> 25624.53306 | E33: =IF(E$13<=Vehicles!$E28,D32*INDEX(D$8:D$10,$H$12),0) -> 24878.18744 | F33: =IF(F$13<=Vehicles!$E28,E32*INDEX(E$8:E$10,$H$12),0) -> 24126.92575 | G33: =IF(G$13<=Vehicles!$E28,F32*INDEX(F$8:F$10,$H$12),0) -> 23347.15519 | H33: =IF(H$13<=Vehicles!$E28,G32*INDEX(G$8:G$10,$H$12),0) -> 22493.4497 | I33: =IF(I$13<=Vehicles!$E28,H32*INDEX(H$8:H$10,$H$12),0) -> 21505.01031 | J33: =IF(J$13<=Vehicles!$E28,I32*INDEX(I$8:I$10,$H$12),0) -> 20309.72699 | K33: =IF(K$13<=Vehicles!$E28,J32*INDEX(J$8:J$10,$H$12),0) -> 18833.78553 | L33: =IF(L$13<=Vehicles!$E28,K32*INDEX(K$8:K$10,$H$12),0) -> 17018.48166 | M33: =IF(M$13<=Vehicles!$E28,L32*INDEX(L$8:L$10,$H$12),0) -> 14844.03262 | N33: =IF(N$13<=Vehicles!$E28,M32*INDEX(M$8:M$10,$H$12),0) -> 12355.88832 | O33: =IF(O$13<=Vehicles!$E28,N32*INDEX(N$8:N$10,$H$12),0) -> 9682.85977 | P33: =IF(P$13<=Vehicles!$E28,O32*INDEX(O$8:O$10,$H$12),0) -> 7031.711794 | Q33: =IF(Q$13<=Vehicles!$E28,P32*INDEX(P$8:P$10,$H$12),0) -> 4646.235107 | R33: =IF(R$13<=Vehicles!$E28,Q32*INDEX(Q$8:Q$10,$H$12),0) -> 2735.558928 | S33: =IF(S$13<=Vehicles!$E28,R32*INDEX(R$8:R$10,$H$12),0) -> 1401.581217 | T33: =IF(T$13<=Vehicles!$E28,S32*INDEX(S$8:S$10,$H$12),0) -> 608.5201979 | U33: =IF(U$13<=Vehicles!$E28,T32*INDEX(T$8:T$10,$H$12),0) -> 217.3418159 | V33: =IF(V$13<=Vehicles!$E28,U32*INDEX(U$8:U$10,$H$12),0) -> 61.79535767 | W33: =IF(W$13<=Vehicles!$E28,V32*INDEX(V$8:V$10,$H$12),0) -> 13.48924534 | X33: =IF(X$13<=Vehicles!$E28,W32*INDEX(W$8:W$10,$H$12),0) -> 2.237847407 | Y33: =IF(Y$13<=Vehicles!$E28,X32*INDEX(X$8:X$10,$H$12),0) -> 0.2100818931 | Z33: =IF(Z$13<=Vehicles!$E28,Y32*INDEX(Y$8:Y$10,$H$12),0) -> 0.01422732289 | AB33: 2039 | AC33: 120470.2511 | AD33: 92511.03712 | AE33: 36452.25392 | AF33: 2302.727834 | AG33: 2.462156623
B34: =Vehicles!B29 -> 2040 | C34: 259290.8772 | D34: =D33*(1+Vehicles!D29) -> 26393.26905 | E34: =IF(E$13<=Vehicles!$E29,D33*INDEX(D$8:D$10,$H$12),0) -> 25624.53306 | F34: =IF(F$13<=Vehicles!$E29,E33*INDEX(E$8:E$10,$H$12),0) -> 24850.73352 | G34: =IF(G$13<=Vehicles!$E29,F33*INDEX(F$8:F$10,$H$12),0) -> 24047.56985 | H34: =IF(H$13<=Vehicles!$E29,G33*INDEX(G$8:G$10,$H$12),0) -> 23168.25319 | I34: =IF(I$13<=Vehicles!$E29,H33*INDEX(H$8:H$10,$H$12),0) -> 22150.16062 | J34: =IF(J$13<=Vehicles!$E29,I33*INDEX(I$8:I$10,$H$12),0) -> 20919.0188 | K34: =IF(K$13<=Vehicles!$E29,J33*INDEX(J$8:J$10,$H$12),0) -> 19398.7991 | L34: =IF(L$13<=Vehicles!$E29,K33*INDEX(K$8:K$10,$H$12),0) -> 17529.03611 | M34: =IF(M$13<=Vehicles!$E29,L33*INDEX(L$8:L$10,$H$12),0) -> 15289.3536 | N34: =IF(N$13<=Vehicles!$E29,M33*INDEX(M$8:M$10,$H$12),0) -> 12726.56497 | O34: =IF(O$13<=Vehicles!$E29,N33*INDEX(N$8:N$10,$H$12),0) -> 9973.345563 | P34: =IF(P$13<=Vehicles!$E29,O33*INDEX(O$8:O$10,$H$12),0) -> 7242.663147 | Q34: =IF(Q$13<=Vehicles!$E29,P33*INDEX(P$8:P$10,$H$12),0) -> 4785.622161 | R34: =IF(R$13<=Vehicles!$E29,Q33*INDEX(Q$8:Q$10,$H$12),0) -> 2817.625696 | S34: =IF(S$13<=Vehicles!$E29,R33*INDEX(R$8:R$10,$H$12),0) -> 1443.628654 | T34: =IF(T$13<=Vehicles!$E29,S33*INDEX(S$8:S$10,$H$12),0) -> 626.7758039 | U34: =IF(U$13<=Vehicles!$E29,T33*INDEX(T$8:T$10,$H$12),0) -> 223.8620704 | V34: =IF(V$13<=Vehicles!$E29,U33*INDEX(U$8:U$10,$H$12),0) -> 63.6492184 | W34: =IF(W$13<=Vehicles!$E29,V33*INDEX(V$8:V$10,$H$12),0) -> 13.8939227 | X34: =IF(X$13<=Vehicles!$E29,W33*INDEX(W$8:W$10,$H$12),0) -> 2.237847407 | Y34: =IF(Y$13<=Vehicles!$E29,X33*INDEX(X$8:X$10,$H$12),0) -> 0.2623125759 | Z34: =IF(Z$13<=Vehicles!$E29,Y33*INDEX(Y$8:Y$10,$H$12),0) -> 0.01890737038 | AB34: 2040 | AC34: 124084.3587 | AD34: 95286.36823 | AE34: 37545.82154 | AF34: 2371.809669 | AG34: 2.519067353
B35: =Vehicles!B30 -> 2041 | C35: 267069.5998 | D35: =D34*(1+Vehicles!D30) -> 27185.06712 | E35: =IF(E$13<=Vehicles!$E30,D34*INDEX(D$8:D$10,$H$12),0) -> 26393.26905 | F35: =IF(F$13<=Vehicles!$E30,E34*INDEX(E$8:E$10,$H$12),0) -> 25596.25553 | G35: =IF(G$13<=Vehicles!$E30,F34*INDEX(F$8:F$10,$H$12),0) -> 24768.99694 | H35: =IF(H$13<=Vehicles!$E30,G34*INDEX(G$8:G$10,$H$12),0) -> 23863.30079 | I35: =IF(I$13<=Vehicles!$E30,H34*INDEX(H$8:H$10,$H$12),0) -> 22814.66544 | J35: =IF(J$13<=Vehicles!$E30,I34*INDEX(I$8:I$10,$H$12),0) -> 21546.58936 | K35: =IF(K$13<=Vehicles!$E30,J34*INDEX(J$8:J$10,$H$12),0) -> 19980.76307 | L35: =IF(L$13<=Vehicles!$E30,K34*INDEX(K$8:K$10,$H$12),0) -> 18054.9072 | M35: =IF(M$13<=Vehicles!$E30,L34*INDEX(L$8:L$10,$H$12),0) -> 15748.03421 | N35: =IF(N$13<=Vehicles!$E30,M34*INDEX(M$8:M$10,$H$12),0) -> 13108.36192 | O35: =IF(O$13<=Vehicles!$E30,N34*INDEX(N$8:N$10,$H$12),0) -> 10272.54593 | P35: =IF(P$13<=Vehicles!$E30,O34*INDEX(O$8:O$10,$H$12),0) -> 7459.943042 | Q35: =IF(Q$13<=Vehicles!$E30,P34*INDEX(P$8:P$10,$H$12),0) -> 4929.190825 | R35: =IF(R$13<=Vehicles!$E30,Q34*INDEX(Q$8:Q$10,$H$12),0) -> 2902.154467 | S35: =IF(S$13<=Vehicles!$E30,R34*INDEX(R$8:R$10,$H$12),0) -> 1486.937513 | T35: =IF(T$13<=Vehicles!$E30,S34*INDEX(S$8:S$10,$H$12),0) -> 645.579078 | U35: =IF(U$13<=Vehicles!$E30,T34*INDEX(T$8:T$10,$H$12),0) -> 230.5779325 | V35: =IF(V$13<=Vehicles!$E30,U34*INDEX(U$8:U$10,$H$12),0) -> 65.55869495 | W35: =IF(W$13<=Vehicles!$E30,V34*INDEX(V$8:V$10,$H$12),0) -> 14.31074038 | X35: =IF(X$13<=Vehicles!$E30,W34*INDEX(W$8:W$10,$H$12),0) -> 2.304982829 | Y35: =IF(Y$13<=Vehicles!$E30,X34*INDEX(X$8:X$10,$H$12),0) -> 0.2623125759 | Z35: =IF(Z$13<=Vehicles!$E30,Y34*INDEX(Y$8:Y$10,$H$12),0) -> 0.02360813183 | AB35: 2041 | AC35: 127806.8894 | AD35: 98144.95928 | AE35: 38672.19619 | AF35: 2442.963959 | AG35: 2.590903537
B36: =Vehicles!B31 -> 2042 | C36: 275081.6871 | D36: =D35*(1+Vehicles!D31) -> 28000.61914 | E36: =IF(E$13<=Vehicles!$E31,D35*INDEX(D$8:D$10,$H$12),0) -> 27185.06712 | F36: =IF(F$13<=Vehicles!$E31,E35*INDEX(E$8:E$10,$H$12),0) -> 26364.1432 | G36: =IF(G$13<=Vehicles!$E31,F35*INDEX(F$8:F$10,$H$12),0) -> 25512.06685 | H36: =IF(H$13<=Vehicles!$E31,G35*INDEX(G$8:G$10,$H$12),0) -> 24579.19981 | I36: =IF(I$13<=Vehicles!$E31,H35*INDEX(H$8:H$10,$H$12),0) -> 23499.10541 | J36: =IF(J$13<=Vehicles!$E31,I35*INDEX(I$8:I$10,$H$12),0) -> 22192.98705 | K36: =IF(K$13<=Vehicles!$E31,J35*INDEX(J$8:J$10,$H$12),0) -> 20580.18596 | L36: =IF(L$13<=Vehicles!$E31,K35*INDEX(K$8:K$10,$H$12),0) -> 18596.55441 | M36: =IF(M$13<=Vehicles!$E31,L35*INDEX(L$8:L$10,$H$12),0) -> 16220.47523 | N36: =IF(N$13<=Vehicles!$E31,M35*INDEX(M$8:M$10,$H$12),0) -> 13501.61278 | O36: =IF(O$13<=Vehicles!$E31,N35*INDEX(N$8:N$10,$H$12),0) -> 10580.72231 | P36: =IF(P$13<=Vehicles!$E31,O35*INDEX(O$8:O$10,$H$12),0) -> 7683.741333 | Q36: =IF(Q$13<=Vehicles!$E31,P35*INDEX(P$8:P$10,$H$12),0) -> 5077.06655 | R36: =IF(R$13<=Vehicles!$E31,Q35*INDEX(Q$8:Q$10,$H$12),0) -> 2989.219101 | S36: =IF(S$13<=Vehicles!$E31,R35*INDEX(R$8:R$10,$H$12),0) -> 1531.545639 | T36: =IF(T$13<=Vehicles!$E31,S35*INDEX(S$8:S$10,$H$12),0) -> 664.9464503 | U36: =IF(U$13<=Vehicles!$E31,T35*INDEX(T$8:T$10,$H$12),0) -> 237.4952704 | V36: =IF(V$13<=Vehicles!$E31,U35*INDEX(U$8:U$10,$H$12),0) -> 67.5254558 | W36: =IF(W$13<=Vehicles!$E31,V35*INDEX(V$8:V$10,$H$12),0) -> 14.74006259 | X36: =IF(X$13<=Vehicles!$E31,W35*INDEX(W$8:W$10,$H$12),0) -> 2.374132314 | Y36: =IF(Y$13<=Vehicles!$E31,X35*INDEX(X$8:X$10,$H$12),0) -> 0.2701819532 | Z36: =IF(Z$13<=Vehicles!$E31,Y35*INDEX(Y$8:Y$10,$H$12),0) -> 0.02360813183 | AB36: 2042 | AC36: 131641.0961 | AD36: 101089.3081 | AE36: 39832.36207 | AF36: 2516.252878 | AG36: 2.667922399
B37: =Vehicles!B32 -> 2043 | C37: 283334.1377 | D37: =D36*(1+Vehicles!D32) -> 28840.63771 | E37: =IF(E$13<=Vehicles!$E32,D36*INDEX(D$8:D$10,$H$12),0) -> 28000.61914 | F37: =IF(F$13<=Vehicles!$E32,E36*INDEX(E$8:E$10,$H$12),0) -> 27155.06749 | G37: =IF(G$13<=Vehicles!$E32,F36*INDEX(F$8:F$10,$H$12),0) -> 26277.42886 | H37: =IF(H$13<=Vehicles!$E32,G36*INDEX(G$8:G$10,$H$12),0) -> 25316.57581 | I37: =IF(I$13<=Vehicles!$E32,H36*INDEX(H$8:H$10,$H$12),0) -> 24204.07857 | J37: =IF(J$13<=Vehicles!$E32,I36*INDEX(I$8:I$10,$H$12),0) -> 22858.77666 | K37: =IF(K$13<=Vehicles!$E32,J36*INDEX(J$8:J$10,$H$12),0) -> 21197.59154 | L37: =IF(L$13<=Vehicles!$E32,K36*INDEX(K$8:K$10,$H$12),0) -> 19154.45105 | M37: =IF(M$13<=Vehicles!$E32,L36*INDEX(L$8:L$10,$H$12),0) -> 16707.08949 | N37: =IF(N$13<=Vehicles!$E32,M36*INDEX(M$8:M$10,$H$12),0) -> 13906.66116 | O37: =IF(O$13<=Vehicles!$E32,N36*INDEX(N$8:N$10,$H$12),0) -> 10898.14398 | P37: =IF(P$13<=Vehicles!$E32,O36*INDEX(O$8:O$10,$H$12),0) -> 7914.253573 | Q37: =IF(Q$13<=Vehicles!$E32,P36*INDEX(P$8:P$10,$H$12),0) -> 5229.378547 | R37: =IF(R$13<=Vehicles!$E32,Q36*INDEX(Q$8:Q$10,$H$12),0) -> 3078.895674 | S37: =IF(S$13<=Vehicles!$E32,R36*INDEX(R$8:R$10,$H$12),0) -> 1577.492008 | T37: =IF(T$13<=Vehicles!$E32,S36*INDEX(S$8:S$10,$H$12),0) -> 684.8948438 | U37: =IF(U$13<=Vehicles!$E32,T36*INDEX(T$8:T$10,$H$12),0) -> 244.6201286 | V37: =IF(V$13<=Vehicles!$E32,U36*INDEX(U$8:U$10,$H$12),0) -> 69.55121948 | W37: =IF(W$13<=Vehicles!$E32,V36*INDEX(V$8:V$10,$H$12),0) -> 15.18226447 | X37: =IF(X$13<=Vehicles!$E32,W36*INDEX(W$8:W$10,$H$12),0) -> 2.445356283 | Y37: =IF(Y$13<=Vehicles!$E32,X36*INDEX(X$8:X$10,$H$12),0) -> 0.2782874118 | Z37: =IF(Z$13<=Vehicles!$E32,Y36*INDEX(Y$8:Y$10,$H$12),0) -> 0.02431637579 | AB37: 2043 | AC37: 135590.329 | AD37: 104121.9873 | AE37: 41027.33294 | AF37: 2591.740464 | AG37: 2.747960071
B38: =Vehicles!B33 -> 2044 | C38: 291834.1618 | D38: =D37*(1+Vehicles!D33) -> 29705.85684 | E38: =IF(E$13<=Vehicles!$E33,D37*INDEX(D$8:D$10,$H$12),0) -> 28840.63771 | F38: =IF(F$13<=Vehicles!$E33,E37*INDEX(E$8:E$10,$H$12),0) -> 27969.71952 | G38: =IF(G$13<=Vehicles!$E33,F37*INDEX(F$8:F$10,$H$12),0) -> 27065.75172 | H38: =IF(H$13<=Vehicles!$E33,G37*INDEX(G$8:G$10,$H$12),0) -> 26076.07308 | I38: =IF(I$13<=Vehicles!$E33,H37*INDEX(H$8:H$10,$H$12),0) -> 24930.20093 | J38: =IF(J$13<=Vehicles!$E33,I37*INDEX(I$8:I$10,$H$12),0) -> 23544.53996 | K38: =IF(K$13<=Vehicles!$E33,J37*INDEX(J$8:J$10,$H$12),0) -> 21833.51929 | L38: =IF(L$13<=Vehicles!$E33,K37*INDEX(K$8:K$10,$H$12),0) -> 19729.08458 | M38: =IF(M$13<=Vehicles!$E33,L37*INDEX(L$8:L$10,$H$12),0) -> 17208.30217 | N38: =IF(N$13<=Vehicles!$E33,M37*INDEX(M$8:M$10,$H$12),0) -> 14323.861 | O38: =IF(O$13<=Vehicles!$E33,N37*INDEX(N$8:N$10,$H$12),0) -> 11225.0883 | P38: =IF(P$13<=Vehicles!$E33,O37*INDEX(O$8:O$10,$H$12),0) -> 8151.68118 | Q38: =IF(Q$13<=Vehicles!$E33,P37*INDEX(P$8:P$10,$H$12),0) -> 5386.259903 | R38: =IF(R$13<=Vehicles!$E33,Q37*INDEX(Q$8:Q$10,$H$12),0) -> 3171.262544 | S38: =IF(S$13<=Vehicles!$E33,R37*INDEX(R$8:R$10,$H$12),0) -> 1624.816768 | T38: =IF(T$13<=Vehicles!$E33,S37*INDEX(S$8:S$10,$H$12),0) -> 705.4416892 | U38: =IF(U$13<=Vehicles!$E33,T37*INDEX(T$8:T$10,$H$12),0) -> 251.9587324 | V38: =IF(V$13<=Vehicles!$E33,U37*INDEX(U$8:U$10,$H$12),0) -> 71.63775606 | W38: =IF(W$13<=Vehicles!$E33,V37*INDEX(V$8:V$10,$H$12),0) -> 15.6377324 | X38: =IF(X$13<=Vehicles!$E33,W37*INDEX(W$8:W$10,$H$12),0) -> 2.518716972 | Y38: =IF(Y$13<=Vehicles!$E33,X37*INDEX(X$8:X$10,$H$12),0) -> 0.2866360341 | Z38: =IF(Z$13<=Vehicles!$E33,Y37*INDEX(Y$8:Y$10,$H$12),0) -> 0.02504586706 | AB38: 2044 | AC38: 139658.0389 | AD38: 107245.6469 | AE38: 42258.15292 | AF38: 2669.492678 | AG38: 2.830398873
B39: =Vehicles!B34 -> 2045 | C39: 300589.1866 | D39: =D38*(1+Vehicles!D34) -> 30597.03255 | E39: =IF(E$13<=Vehicles!$E34,D38*INDEX(D$8:D$10,$H$12),0) -> 29705.85684 | F39: =IF(F$13<=Vehicles!$E34,E38*INDEX(E$8:E$10,$H$12),0) -> 28808.8111 | G39: =IF(G$13<=Vehicles!$E34,F38*INDEX(F$8:F$10,$H$12),0) -> 27877.72428 | H39: =IF(H$13<=Vehicles!$E34,G38*INDEX(G$8:G$10,$H$12),0) -> 26858.35527 | I39: =IF(I$13<=Vehicles!$E34,H38*INDEX(H$8:H$10,$H$12),0) -> 25678.10695 | J39: =IF(J$13<=Vehicles!$E34,I38*INDEX(I$8:I$10,$H$12),0) -> 24250.87616 | K39: =IF(K$13<=Vehicles!$E34,J38*INDEX(J$8:J$10,$H$12),0) -> 22488.52486 | L39: =IF(L$13<=Vehicles!$E34,K38*INDEX(K$8:K$10,$H$12),0) -> 20320.95711 | M39: =IF(M$13<=Vehicles!$E34,L38*INDEX(L$8:L$10,$H$12),0) -> 17724.55124 | N39: =IF(N$13<=Vehicles!$E34,M38*INDEX(M$8:M$10,$H$12),0) -> 14753.57683 | O39: =IF(O$13<=Vehicles!$E34,N38*INDEX(N$8:N$10,$H$12),0) -> 11561.84095 | P39: =IF(P$13<=Vehicles!$E34,O38*INDEX(O$8:O$10,$H$12),0) -> 8396.231616 | Q39: =IF(Q$13<=Vehicles!$E34,P38*INDEX(P$8:P$10,$H$12),0) -> 5547.8477 | R39: =IF(R$13<=Vehicles!$E34,Q38*INDEX(Q$8:Q$10,$H$12),0) -> 3266.40042 | S39: =IF(S$13<=Vehicles!$E34,R38*INDEX(R$8:R$10,$H$12),0) -> 1673.561271 | T39: =IF(T$13<=Vehicles!$E34,S38*INDEX(S$8:S$10,$H$12),0) -> 726.6049398 | U39: =IF(U$13<=Vehicles!$E34,T38*INDEX(T$8:T$10,$H$12),0) -> 259.5174944 | V39: =IF(V$13<=Vehicles!$E34,U38*INDEX(U$8:U$10,$H$12),0) -> 73.78688874 | W39: =IF(W$13<=Vehicles!$E34,V38*INDEX(V$8:V$10,$H$12),0) -> 16.10686437 | X39: =IF(X$13<=Vehicles!$E34,W38*INDEX(W$8:W$10,$H$12),0) -> 2.594278481 | Y39: =IF(Y$13<=Vehicles!$E34,X38*INDEX(X$8:X$10,$H$12),0) -> 0.2952351151 | Z39: =IF(Z$13<=Vehicles!$E34,Y38*INDEX(Y$8:Y$10,$H$12),0) -> 0.02579724307 | AB39: 2045 | AC39: 143847.78 | AD39: 110463.0163 | AE39: 43525.89751 | AF39: 2749.577458 | AG39: 2.915310839
B40: =Vehicles!B35 -> 2046 | C40: 309606.8622 | D40: =D39*(1+Vehicles!D35) -> 31514.94352 | E40: =IF(E$13<=Vehicles!$E35,D39*INDEX(D$8:D$10,$H$12),0) -> 30597.03255 | F40: =IF(F$13<=Vehicles!$E35,E39*INDEX(E$8:E$10,$H$12),0) -> 29673.07543 | G40: =IF(G$13<=Vehicles!$E35,F39*INDEX(F$8:F$10,$H$12),0) -> 28714.056 | H40: =IF(H$13<=Vehicles!$E35,G39*INDEX(G$8:G$10,$H$12),0) -> 27664.10593 | I40: =IF(I$13<=Vehicles!$E35,H39*INDEX(H$8:H$10,$H$12),0) -> 26448.45016 | J40: =IF(J$13<=Vehicles!$E35,I39*INDEX(I$8:I$10,$H$12),0) -> 24978.40244 | K40: =IF(K$13<=Vehicles!$E35,J39*INDEX(J$8:J$10,$H$12),0) -> 23163.18061 | L40: =IF(L$13<=Vehicles!$E35,K39*INDEX(K$8:K$10,$H$12),0) -> 20930.58583 | M40: =IF(M$13<=Vehicles!$E35,L39*INDEX(L$8:L$10,$H$12),0) -> 18256.28778 | N40: =IF(N$13<=Vehicles!$E35,M39*INDEX(M$8:M$10,$H$12),0) -> 15196.18413 | O40: =IF(O$13<=Vehicles!$E35,N39*INDEX(N$8:N$10,$H$12),0) -> 11908.69617 | P40: =IF(P$13<=Vehicles!$E35,O39*INDEX(O$8:O$10,$H$12),0) -> 8648.118564 | Q40: =IF(Q$13<=Vehicles!$E35,P39*INDEX(P$8:P$10,$H$12),0) -> 5714.283131 | R40: =IF(R$13<=Vehicles!$E35,Q39*INDEX(Q$8:Q$10,$H$12),0) -> 3364.392433 | S40: =IF(S$13<=Vehicles!$E35,R39*INDEX(R$8:R$10,$H$12),0) -> 1723.768109 | T40: =IF(T$13<=Vehicles!$E35,S39*INDEX(S$8:S$10,$H$12),0) -> 748.403088 | U40: =IF(U$13<=Vehicles!$E35,T39*INDEX(T$8:T$10,$H$12),0) -> 267.3030192 | V40: =IF(V$13<=Vehicles!$E35,U39*INDEX(U$8:U$10,$H$12),0) -> 76.0004954 | W40: =IF(W$13<=Vehicles!$E35,V39*INDEX(V$8:V$10,$H$12),0) -> 16.59007031 | X40: =IF(X$13<=Vehicles!$E35,W39*INDEX(W$8:W$10,$H$12),0) -> 2.672106835 | Y40: =IF(Y$13<=Vehicles!$E35,X39*INDEX(X$8:X$10,$H$12),0) -> 0.3040921686 | Z40: =IF(Z$13<=Vehicles!$E35,Y39*INDEX(Y$8:Y$10,$H$12),0) -> 0.02657116036 | AB40: 2046 | AC40: 148163.2134 | AD40: 113776.9068 | AE40: 44831.67444 | AF40: 2832.064782 | AG40: 3.002770164
B41: =Vehicles!B36 -> 2047 | C41: 318895.0681 | D41: =D40*(1+Vehicles!D36) -> 32460.39183 | E41: =IF(E$13<=Vehicles!$E36,D40*INDEX(D$8:D$10,$H$12),0) -> 31514.94352 | F41: =IF(F$13<=Vehicles!$E36,E40*INDEX(E$8:E$10,$H$12),0) -> 30563.2677 | G41: =IF(G$13<=Vehicles!$E36,F40*INDEX(F$8:F$10,$H$12),0) -> 29575.47768 | H41: =IF(H$13<=Vehicles!$E36,G40*INDEX(G$8:G$10,$H$12),0) -> 28494.02911 | I41: =IF(I$13<=Vehicles!$E36,H40*INDEX(H$8:H$10,$H$12),0) -> 27241.90367 | J41: =IF(J$13<=Vehicles!$E36,I40*INDEX(I$8:I$10,$H$12),0) -> 25727.75451 | K41: =IF(K$13<=Vehicles!$E36,J40*INDEX(J$8:J$10,$H$12),0) -> 23858.07603 | L41: =IF(L$13<=Vehicles!$E36,K40*INDEX(K$8:K$10,$H$12),0) -> 21558.5034 | M41: =IF(M$13<=Vehicles!$E36,L40*INDEX(L$8:L$10,$H$12),0) -> 18803.97641 | N41: =IF(N$13<=Vehicles!$E36,M40*INDEX(M$8:M$10,$H$12),0) -> 15652.06966 | O41: =IF(O$13<=Vehicles!$E36,N40*INDEX(N$8:N$10,$H$12),0) -> 12265.95706 | P41: =IF(P$13<=Vehicles!$E36,O40*INDEX(O$8:O$10,$H$12),0) -> 8907.562121 | Q41: =IF(Q$13<=Vehicles!$E36,P40*INDEX(P$8:P$10,$H$12),0) -> 5885.711625 | R41: =IF(R$13<=Vehicles!$E36,Q40*INDEX(Q$8:Q$10,$H$12),0) -> 3465.324206 | S41: =IF(S$13<=Vehicles!$E36,R40*INDEX(R$8:R$10,$H$12),0) -> 1775.481152 | T41: =IF(T$13<=Vehicles!$E36,S40*INDEX(S$8:S$10,$H$12),0) -> 770.8551807 | U41: =IF(U$13<=Vehicles!$E36,T40*INDEX(T$8:T$10,$H$12),0) -> 275.3221098 | V41: =IF(V$13<=Vehicles!$E36,U40*INDEX(U$8:U$10,$H$12),0) -> 78.28051027 | W41: =IF(W$13<=Vehicles!$E36,V40*INDEX(V$8:V$10,$H$12),0) -> 17.08777242 | X41: =IF(X$13<=Vehicles!$E36,W40*INDEX(W$8:W$10,$H$12),0) -> 2.75227004 | Y41: =IF(Y$13<=Vehicles!$E36,X40*INDEX(X$8:X$10,$H$12),0) -> 0.3132149337 | Z41: =IF(Z$13<=Vehicles!$E36,Y40*INDEX(Y$8:Y$10,$H$12),0) -> 0.02736829517 | AB41: 2047 | AC41: 152608.1098 | AD41: 117190.214 | AE41: 46176.62467 | AF41: 2917.026726 | AG41: 3.092853269
B42: =Vehicles!B37 -> 2048 | C42: 328461.9202 | D42: =D41*(1+Vehicles!D37) -> 33434.20358 | E42: =IF(E$13<=Vehicles!$E37,D41*INDEX(D$8:D$10,$H$12),0) -> 32460.39183 | F42: =IF(F$13<=Vehicles!$E37,E41*INDEX(E$8:E$10,$H$12),0) -> 31480.16573 | G42: =IF(G$13<=Vehicles!$E37,F41*INDEX(F$8:F$10,$H$12),0) -> 30462.74201 | H42: =IF(H$13<=Vehicles!$E37,G41*INDEX(G$8:G$10,$H$12),0) -> 29348.84998 | I42: =IF(I$13<=Vehicles!$E37,H41*INDEX(H$8:H$10,$H$12),0) -> 28059.16078 | J42: =IF(J$13<=Vehicles!$E37,I41*INDEX(I$8:I$10,$H$12),0) -> 26499.58715 | K42: =IF(K$13<=Vehicles!$E37,J41*INDEX(J$8:J$10,$H$12),0) -> 24573.81831 | L42: =IF(L$13<=Vehicles!$E37,K41*INDEX(K$8:K$10,$H$12),0) -> 22205.2585 | M42: =IF(M$13<=Vehicles!$E37,L41*INDEX(L$8:L$10,$H$12),0) -> 19368.0957 | N42: =IF(N$13<=Vehicles!$E37,M41*INDEX(M$8:M$10,$H$12),0) -> 16121.63175 | O42: =IF(O$13<=Vehicles!$E37,N41*INDEX(N$8:N$10,$H$12),0) -> 12633.93577 | P42: =IF(P$13<=Vehicles!$E37,O41*INDEX(O$8:O$10,$H$12),0) -> 9174.788985 | Q42: =IF(Q$13<=Vehicles!$E37,P41*INDEX(P$8:P$10,$H$12),0) -> 6062.282974 | R42: =IF(R$13<=Vehicles!$E37,Q41*INDEX(Q$8:Q$10,$H$12),0) -> 3569.283932 | S42: =IF(S$13<=Vehicles!$E37,R41*INDEX(R$8:R$10,$H$12),0) -> 1828.745587 | T42: =IF(T$13<=Vehicles!$E37,S41*INDEX(S$8:S$10,$H$12),0) -> 793.9808361 | U42: =IF(U$13<=Vehicles!$E37,T41*INDEX(T$8:T$10,$H$12),0) -> 283.5817731 | V42: =IF(V$13<=Vehicles!$E37,U41*INDEX(U$8:U$10,$H$12),0) -> 80.62892557 | W42: =IF(W$13<=Vehicles!$E37,V41*INDEX(V$8:V$10,$H$12),0) -> 17.60040559 | X42: =IF(X$13<=Vehicles!$E37,W41*INDEX(W$8:W$10,$H$12),0) -> 2.834838142 | Y42: =IF(Y$13<=Vehicles!$E37,X41*INDEX(X$8:X$10,$H$12),0) -> 0.3226113817 | Z42: =IF(Z$13<=Vehicles!$E37,Y41*INDEX(Y$8:Y$10,$H$12),0) -> 0.02818934403 | AB42: 2048 | AC42: 157186.3531 | AD42: 120705.9204 | AE42: 47561.92341 | AF42: 3004.537527 | AG42: 3.185638867
B43: =Vehicles!B38 -> 2049 | C43: 338315.7778 | D43: =D42*(1+Vehicles!D38) -> 34437.22969 | E43: =IF(E$13<=Vehicles!$E38,D42*INDEX(D$8:D$10,$H$12),0) -> 33434.20358 | F43: =IF(F$13<=Vehicles!$E38,E42*INDEX(E$8:E$10,$H$12),0) -> 32424.5707 | G43: =IF(G$13<=Vehicles!$E38,F42*INDEX(F$8:F$10,$H$12),0) -> 31376.62428 | H43: =IF(H$13<=Vehicles!$E38,G42*INDEX(G$8:G$10,$H$12),0) -> 30229.31548 | I43: =IF(I$13<=Vehicles!$E38,H42*INDEX(H$8:H$10,$H$12),0) -> 28900.9356 | J43: =IF(J$13<=Vehicles!$E38,I42*INDEX(I$8:I$10,$H$12),0) -> 27294.57476 | K43: =IF(K$13<=Vehicles!$E38,J42*INDEX(J$8:J$10,$H$12),0) -> 25311.03286 | L43: =IF(L$13<=Vehicles!$E38,K42*INDEX(K$8:K$10,$H$12),0) -> 22871.41626 | M43: =IF(M$13<=Vehicles!$E38,L42*INDEX(L$8:L$10,$H$12),0) -> 19949.13857 | N43: =IF(N$13<=Vehicles!$E38,M42*INDEX(M$8:M$10,$H$12),0) -> 16605.2807 | O43: =IF(O$13<=Vehicles!$E38,N42*INDEX(N$8:N$10,$H$12),0) -> 13012.95384 | P43: =IF(P$13<=Vehicles!$E38,O42*INDEX(O$8:O$10,$H$12),0) -> 9450.032654 | Q43: =IF(Q$13<=Vehicles!$E38,P42*INDEX(P$8:P$10,$H$12),0) -> 6244.151463 | R43: =IF(R$13<=Vehicles!$E38,Q42*INDEX(Q$8:Q$10,$H$12),0) -> 3676.36245 | S43: =IF(S$13<=Vehicles!$E38,R42*INDEX(R$8:R$10,$H$12),0) -> 1883.607955 | T43: =IF(T$13<=Vehicles!$E38,S42*INDEX(S$8:S$10,$H$12),0) -> 817.8002612 | U43: =IF(U$13<=Vehicles!$E38,T42*INDEX(T$8:T$10,$H$12),0) -> 292.0892263 | V43: =IF(V$13<=Vehicles!$E38,U42*INDEX(U$8:U$10,$H$12),0) -> 83.04779334 | W43: =IF(W$13<=Vehicles!$E38,V42*INDEX(V$8:V$10,$H$12),0) -> 18.12841776 | X43: =IF(X$13<=Vehicles!$E38,W42*INDEX(W$8:W$10,$H$12),0) -> 2.919883286 | Y43: =IF(Y$13<=Vehicles!$E38,X42*INDEX(X$8:X$10,$H$12),0) -> 0.3322897231 | Z43: =IF(Z$13<=Vehicles!$E38,Y42*INDEX(Y$8:Y$10,$H$12),0) -> 0.02903502435 | AB43: 2049 | AC43: 161901.9437 | AD43: 124327.0981 | AE43: 48988.78111 | AF43: 3094.673653 | AG43: 3.281208033
B44: =Vehicles!B39 -> 2050 | C44: 348465.2511 | D44: =D43*(1+Vehicles!D39) -> 35470.34658 | E44: =IF(E$13<=Vehicles!$E39,D43*INDEX(D$8:D$10,$H$12),0) -> 34437.22969 | F44: =IF(F$13<=Vehicles!$E39,E43*INDEX(E$8:E$10,$H$12),0) -> 33397.30782 | G44: =IF(G$13<=Vehicles!$E39,F43*INDEX(F$8:F$10,$H$12),0) -> 32317.923 | H44: =IF(H$13<=Vehicles!$E39,G43*INDEX(G$8:G$10,$H$12),0) -> 31136.19495 | I44: =IF(I$13<=Vehicles!$E39,H43*INDEX(H$8:H$10,$H$12),0) -> 29767.96367 | J44: =IF(J$13<=Vehicles!$E39,I43*INDEX(I$8:I$10,$H$12),0) -> 28113.41201 | K44: =IF(K$13<=Vehicles!$E39,J43*INDEX(J$8:J$10,$H$12),0) -> 26070.36384 | L44: =IF(L$13<=Vehicles!$E39,K43*INDEX(K$8:K$10,$H$12),0) -> 23557.55875 | M44: =IF(M$13<=Vehicles!$E39,L43*INDEX(L$8:L$10,$H$12),0) -> 20547.61273 | N44: =IF(N$13<=Vehicles!$E39,M43*INDEX(M$8:M$10,$H$12),0) -> 17103.43912 | O44: =IF(O$13<=Vehicles!$E39,N43*INDEX(N$8:N$10,$H$12),0) -> 13403.34246 | P44: =IF(P$13<=Vehicles!$E39,O43*INDEX(O$8:O$10,$H$12),0) -> 9733.533634 | Q44: =IF(Q$13<=Vehicles!$E39,P43*INDEX(P$8:P$10,$H$12),0) -> 6431.476007 | R44: =IF(R$13<=Vehicles!$E39,Q43*INDEX(Q$8:Q$10,$H$12),0) -> 3786.653324 | S44: =IF(S$13<=Vehicles!$E39,R43*INDEX(R$8:R$10,$H$12),0) -> 1940.116193 | T44: =IF(T$13<=Vehicles!$E39,S43*INDEX(S$8:S$10,$H$12),0) -> 842.334269 | U44: =IF(U$13<=Vehicles!$E39,T43*INDEX(T$8:T$10,$H$12),0) -> 300.8519031 | V44: =IF(V$13<=Vehicles!$E39,U43*INDEX(U$8:U$10,$H$12),0) -> 85.53922714 | W44: =IF(W$13<=Vehicles!$E39,V43*INDEX(V$8:V$10,$H$12),0) -> 18.67227029 | X44: =IF(X$13<=Vehicles!$E39,W43*INDEX(W$8:W$10,$H$12),0) -> 3.007479785 | Y44: =IF(Y$13<=Vehicles!$E39,X43*INDEX(X$8:X$10,$H$12),0) -> 0.3422584148 | Z44: =IF(Z$13<=Vehicles!$E39,Y43*INDEX(Y$8:Y$10,$H$12),0) -> 0.02990607508 | AB44: 2050 | AC44: 166759.002 | AD44: 128056.911 | AE44: 50458.44455 | AF44: 3187.513863 | AG44: 3.379644274

Sheet EmFactor
B2: Vehicular Air Pollution Information System
C7: Survival | D7: 1 | E7: 2 | F7: 3 | G7: 4 | H7: 5 | I7: 6 | J7: 7 | K7: 8 | L7: 9 | M7: 10 | N7: 11 | O7: 12 | P7: 13 | Q7: 14 | R7: 15 | S7: 16 | T7: 17 | U7: 18 | V7: 19 | W7: 20 | X7: 21 | Y7: 22 | Z7: 23
C8: Det.Rate | D8: 0.005 | E8: =D8*1.1 -> 0.0055 | F8: =E8*1.1 -> 0.00605 | G8: 0.006655 | H8: 0.0073205 | I8: 0.00805255 | J8: 0.008857805 | K8: 0.0097435855 | L8: 0.01071794405 | M8: 0.01178973846 | N8: 0.0129687123 | O8: 0.01426558353 | P8: 0.01569214188 | Q8: 0.01726135607 | R8: 0.01898749168 | S8: 0.02088624085 | T8: 0.02297486493 | U8: 0.02527235142 | V8: 0.02779958657 | W8: 0.03057954522 | X8: 0.03363749975 | Y8: 0.03700124972 | Z8: 0.04070137469
B12: Year
C13: Base | D13: 1 | E13: 2 | F13: 3 | G13: 4 | H13: 5 | I13: 6 | J13: 7 | K13: 8 | L13: 9 | M13: 10 | N13: 11 | O13: 12 | P13: 13 | Q13: 14 | R13: 15 | S13: 16 | T13: 17 | U13: 18 | V13: 19 | W13: 20 | X13: 21 | Y13: 22 | Z13: 23 | AB13: Year | AC13: Y<5 | AD13: Y6-10 | AE13: Y11-15 | AF13: Y16-20 | AG13: Y>20 | AH13: Fleet.Avg
B14: =Vehicles!B9 -> 2020 | C14: =Inputs!K20 -> 4 | D14: =C14*(1+D$8) -> 4.02 | E14: =D14*(1+E$8) -> 4.04211 | F14: 4.066564766 | G14: 4.093627754 | H14: 4.123595156 | I14: 4.156800612 | J14: 4.193620741 | K14: 4.234481644 | L14: 4.279866581 | M14: 4.330325089 | N14: 4.386483829 | O14: 4.44905958 | P14: 4.518874854 | Q14: 4.596876762 | R14: 4.684159922 | S14: 4.781994414 | T14: 4.89186009 | U14: 5.015488897 | V14: 5.154917415 | W14: 5.312552445 | X14: 5.491253427 | Y14: 5.694436666 | Z14: 5.926208066 | AB14: =B14 -> 2020 | AC14: =SUMPRODUCT(D14:H14,Vehicles_byAge!D14:H14)/SUM(Vehicles_byAge!D14:H14) -> 4.06142389 | AD14: =SUMPRODUCT(E14:I14,Vehicles_byAge!E14:I14)/SUM(Vehicles_byAge!E14:I14) -> 4.088028489 | AE14: =SUMPRODUCT(F14:J14,Vehicles_byAge!F14:J14)/SUM(Vehicles_byAge!F14:J14) -> 4.12167655 | AF14: =SUMPRODUCT(G14:K14,Vehicles_byAge!G14:K14)/SUM(Vehicles_byAge!G14:K14) -> 4.154574301 | AG14: =SUMPRODUCT(H14:L14,Vehicles_byAge!H14:L14)/SUM(Vehicles_byAge!H14:L14) -> 4.18906465 | AH14: =SUMPRODUCT(D14:Z14,Vehicles_byAge!D14:Z14)/SUM(Vehicles_byAge!D14:Z14) -> 4.155882955
B15: =Vehicles!B10 -> 2021 | C15: =C14 -> 4 | D15: =C15*(1+D$8) -> 4.02 | E15: =D14*(1+E$8) -> 4.04211 | F15: =E14*(1+F$8) -> 4.066564766 | G15: 4.093627754 | H15: 4.123595156 | I15: 4.156800612 | J15: 4.193620741 | K15: 4.234481644 | L15: 4.279866581 | M15: 4.330325089 | N15: 4.386483829 | O15: 4.44905958 | P15: 4.518874854 | Q15: 4.596876762 | R15: 4.684159922 | S15: 4.781994414 | T15: 4.89186009 | U15: 5.015488897 | V15: 5.154917415 | W15: 5.312552445 | X15: 5.491253427 | Y15: 5.694436666 | Z15: 5.926208066 | AB15: =B15 -> 2021 | AC15: =SUMPRODUCT(D15:H15,Vehicles_byAge!D15:H15)/SUM(Vehicles_byAge!D15:H15) -> 4.062746916 | AD15: =SUMPRODUCT(E15:I15,Vehicles_byAge!E15:I15)/SUM(Vehicles_byAge!E15:I15) -> 4.087756338 | AE15: =SUMPRODUCT(F15:J15,Vehicles_byAge!F15:J15)/SUM(Vehicles_byAge!F15:J15) -> 4.117009216 | AF15: =SUMPRODUCT(G15:K15,Vehicles_byAge!G15:K15)/SUM(Vehicles_byAge!G15:K15) -> 4.153947188 | AG15: =SUMPRODUCT(H15:L15,Vehicles_byAge!H15:L15)/SUM(Vehicles_byAge!H15:L15) -> 4.190055539 | AH15: =SUMPRODUCT(D15:Z15,Vehicles_byAge!D15:Z15)/SUM(Vehicles_byAge!D15:Z15) -> 4.155191361
B16: =Vehicles!B11 -> 2022 | C16: =C15 -> 4 | D16: =C16*(1+D$8) -> 4.02 | E16: =D15*(1+E$8) -> 4.04211 | F16: 4.066564766 | G16: 4.093627754 | H16: 4.123595156 | I16: 4.156800612 | J16: 4.193620741 | K16: 4.234481644 | L16: 4.279866581 | M16: 4.330325089 | N16: 4.386483829 | O16: 4.44905958 | P16: 4.518874854 | Q16: 4.596876762 | R16: 4.684159922 | S16: 4.781994414 | T16: 4.89186009 | U16: 5.015488897 | V16: 5.154917415 | W16: 5.312552445 | X16: 5.491253427 | Y16: 5.694436666 | Z16: 5.926208066 | AB16: 2022 | AC16: =SUMPRODUCT(D16:H16,Vehicles_byAge!D16:H16)/SUM(Vehicles_byAge!D16:H16) -> 4.066048231 | AD16: =SUMPRODUCT(E16:I16,Vehicles_byAge!E16:I16)/SUM(Vehicles_byAge!E16:I16) -> 4.089233193 | AE16: =SUMPRODUCT(F16:J16,Vehicles_byAge!F16:J16)/SUM(Vehicles_byAge!F16:J16) -> 4.116731984 | AF16: =SUMPRODUCT(G16:K16,Vehicles_byAge!G16:K16)/SUM(Vehicles_byAge!G16:K16) -> 4.148804819 | AG16: =SUMPRODUCT(H16:L16,Vehicles_byAge!H16:L16)/SUM(Vehicles_byAge!H16:L16) -> 4.18923788 | AH16: =SUMPRODUCT(D16:Z16,Vehicles_byAge!D16:Z16)/SUM(Vehicles_byAge!D16:Z16) -> 4.156717498
B17: =Vehicles!B12 -> 2023 | C17: 4 | D17: 4.02 | E17: 4.04211 | F17: 4.066564766 | G17: 4.093627754 | H17: 4.123595156 | I17: 4.156800612 | J17: 4.193620741 | K17: 4.234481644 | L17: 4.279866581 | M17: 4.330325089 | N17: 4.386483829 | O17: 4.44905958 | P17: 4.518874854 | Q17: 4.596876762 | R17: 4.684159922 | S17: 4.781994414 | T17: 4.89186009 | U17: 5.015488897 | V17: 5.154917415 | W17: 5.312552445 | X17: 5.491253427 | Y17: 5.694436666 | Z17: 5.926208066 | AB17: 2023 | AC17: =SUMPRODUCT(D17:H17,Vehicles_byAge!D17:H17)/SUM(Vehicles_byAge!D17:H17) -> 4.067815726 | AD17: =SUMPRODUCT(E17:I17,Vehicles_byAge!E17:I17)/SUM(Vehicles_byAge!E17:I17) -> 4.092871686 | AE17: =SUMPRODUCT(F17:J17,Vehicles_byAge!F17:J17)/SUM(Vehicles_byAge!F17:J17) -> 4.118390885 | AF17: =SUMPRODUCT(G17:K17,Vehicles_byAge!G17:K17)/SUM(Vehicles_byAge!G17:K17) -> 4.148542698 | AG17: =SUMPRODUCT(H17:L17,Vehicles_byAge!H17:L17)/SUM(Vehicles_byAge!H17:L17) -> 4.183585803 | AH17: =SUMPRODUCT(D17:Z17,Vehicles_byAge!D17:Z17)/SUM(Vehicles_byAge!D17:Z17) -> 4.159436917
B18: =Vehicles!B13 -> 2024 | C18: 4 | D18: 4.02 | E18: 4.04211 | F18: 4.066564766 | G18: 4.093627754 | H18: 4.123595156 | I18: 4.156800612 | J18: 4.193620741 | K18: 4.234481644 | L18: 4.279866581 | M18: 4.330325089 | N18: 4.386483829 | O18: 4.44905958 | P18: 4.518874854 | Q18: 4.596876762 | R18: 4.684159922 | S18: 4.781994414 | T18: 4.89186009 | U18: 5.015488897 | V18: 5.154917415 | W18: 5.312552445 | X18: 5.491253427 | Y18: 5.694436666 | Z18: 5.926208066 | AB18: 2024 | AC18: =SUMPRODUCT(D18:H18,Vehicles_byAge!D18:H18)/SUM(Vehicles_byAge!D18:H18) -> 4.067503283 | AD18: =SUMPRODUCT(E18:I18,Vehicles_byAge!E18:I18)/SUM(Vehicles_byAge!E18:I18) -> 4.094813643 | AE18: =SUMPRODUCT(F18:J18,Vehicles_byAge!F18:J18)/SUM(Vehicles_byAge!F18:J18) -> 4.122390739 | AF18: =SUMPRODUCT(G18:K18,Vehicles_byAge!G18:K18)/SUM(Vehicles_byAge!G18:K18) -> 4.150420767 | AG18: =SUMPRODUCT(H18:L18,Vehicles_byAge!H18:L18)/SUM(Vehicles_byAge!H18:L18) -> 4.183372787 | AH18: =SUMPRODUCT(D18:Z18,Vehicles_byAge!D18:Z18)/SUM(Vehicles_byAge!D18:Z18) -> 4.1629284
B19: =Vehicles!B14 -> 2025 | C19: 4 | D19: 4.02 | E19: 4.04211 | F19: 4.066564766 | G19: 4.093627754 | H19: 4.123595156 | I19: 4.156800612 | J19: 4.193620741 | K19: 4.234481644 | L19: 4.279866581 | M19: 4.330325089 | N19: 4.386483829 | O19: 4.44905958 | P19: 4.518874854 | Q19: 4.596876762 | R19: 4.684159922 | S19: 4.781994414 | T19: 4.89186009 | U19: 5.015488897 | V19: 5.154917415 | W19: 5.312552445 | X19: 5.491253427 | Y19: 5.694436666 | Z19: 5.926208066 | AB19: 2025 | AC19: =SUMPRODUCT(D19:H19,Vehicles_byAge!D19:H19)/SUM(Vehicles_byAge!D19:H19) -> 4.067503283 | AD19: =SUMPRODUCT(E19:I19,Vehicles_byAge!E19:I19)/SUM(Vehicles_byAge!E19:I19) -> 4.094469933 | AE19: =SUMPRODUCT(F19:J19,Vehicles_byAge!F19:J19)/SUM(Vehicles_byAge!F19:J19) -> 4.124514519 | AF19: =SUMPRODUCT(G19:K19,Vehicles_byAge!G19:K19)/SUM(Vehicles_byAge!G19:K19) -> 4.154800956 | AG19: =SUMPRODUCT(H19:L19,Vehicles_byAge!H19:L19)/SUM(Vehicles_byAge!H19:L19) -> 4.18551779 | AH19: =SUMPRODUCT(D19:Z19,Vehicles_byAge!D19:Z19)/SUM(Vehicles_byAge!D19:Z19) -> 4.166898989
B20: =Vehicles!B15 -> 2026 | C20: 4 | D20: 4.02 | E20: 4.04211 | F20: 4.066564766 | G20: 4.093627754 | H20: 4.123595156 | I20: 4.156800612 | J20: 4.193620741 | K20: 4.234481644 | L20: 4.279866581 | M20: 4.330325089 | N20: 4.386483829 | O20: 4.44905958 | P20: 4.518874854 | Q20: 4.596876762 | R20: 4.684159922 | S20: 4.781994414 | T20: 4.89186009 | U20: 5.015488897 | V20: 5.154917415 | W20: 5.312552445 | X20: 5.491253427 | Y20: 5.694436666 | Z20: 5.926208066 | AB20: 2026 | AC20: =SUMPRODUCT(D20:H20,Vehicles_byAge!D20:H20)/SUM(Vehicles_byAge!D20:H20) -> 4.067503283 | AD20: =SUMPRODUCT(E20:I20,Vehicles_byAge!E20:I20)/SUM(Vehicles_byAge!E20:I20) -> 4.094469933 | AE20: =SUMPRODUCT(F20:J20,Vehicles_byAge!F20:J20)/SUM(Vehicles_byAge!F20:J20) -> 4.124137842 | AF20: =SUMPRODUCT(G20:K20,Vehicles_byAge!G20:K20)/SUM(Vehicles_byAge!G20:K20) -> 4.157108061 | AG20: =SUMPRODUCT(H20:L20,Vehicles_byAge!H20:L20)/SUM(Vehicles_byAge!H20:L20) -> 4.190287875 | AH20: =SUMPRODUCT(D20:Z20,Vehicles_byAge!D20:Z20)/SUM(Vehicles_byAge!D20:Z20) -> 4.17109612
B21: =Vehicles!B16 -> 2027 | C21: 4 | D21: 4.02 | E21: 4.04211 | F21: 4.066564766 | G21: 4.093627754 | H21: 4.123595156 | I21: 4.156800612 | J21: 4.193620741 | K21: 4.234481644 | L21: 4.279866581 | M21: 4.330325089 | N21: 4.386483829 | O21: 4.44905958 | P21: 4.518874854 | Q21: 4.596876762 | R21: 4.684159922 | S21: 4.781994414 | T21: 4.89186009 | U21: 5.015488897 | V21: 5.154917415 | W21: 5.312552445 | X21: 5.491253427 | Y21: 5.694436666 | Z21: 5.926208066 | AB21: 2027 | AC21: =SUMPRODUCT(D21:H21,Vehicles_byAge!D21:H21)/SUM(Vehicles_byAge!D21:H21) -> 4.067503283 | AD21: =SUMPRODUCT(E21:I21,Vehicles_byAge!E21:I21)/SUM(Vehicles_byAge!E21:I21) -> 4.094469933 | AE21: =SUMPRODUCT(F21:J21,Vehicles_byAge!F21:J21)/SUM(Vehicles_byAge!F21:J21) -> 4.124137842 | AF21: =SUMPRODUCT(G21:K21,Vehicles_byAge!G21:K21)/SUM(Vehicles_byAge!G21:K21) -> 4.15669753 | AG21: =SUMPRODUCT(H21:L21,Vehicles_byAge!H21:L21)/SUM(Vehicles_byAge!H21:L21) -> 4.192770821 | AH21: =SUMPRODUCT(D21:Z21,Vehicles_byAge!D21:Z21)/SUM(Vehicles_byAge!D21:Z21) -> 4.175329836
B22: =Vehicles!B17 -> 2028 | C22: 4 | D22: 4.02 | E22: 4.04211 | F22: 4.066564766 | G22: 4.093627754 | H22: 4.123595156 | I22: 4.156800612 | J22: 4.193620741 | K22: 4.234481644 | L22: 4.279866581 | M22: 4.330325089 | N22: 4.386483829 | O22: 4.44905958 | P22: 4.518874854 | Q22: 4.596876762 | R22: 4.684159922 | S22: 4.781994414 | T22: 4.89186009 | U22: 5.015488897 | V22: 5.154917415 | W22: 5.312552445 | X22: 5.491253427 | Y22: 5.694436666 | Z22: 5.926208066 | AB22: 2028 | AC22: =SUMPRODUCT(D22:H22,Vehicles_byAge!D22:H22)/SUM(Vehicles_byAge!D22:H22) -> 4.067503283 | AD22: =SUMPRODUCT(E22:I22,Vehicles_byAge!E22:I22)/SUM(Vehicles_byAge!E22:I22) -> 4.094469933 | AE22: =SUMPRODUCT(F22:J22,Vehicles_byAge!F22:J22)/SUM(Vehicles_byAge!F22:J22) -> 4.124137842 | AF22: =SUMPRODUCT(G22:K22,Vehicles_byAge!G22:K22)/SUM(Vehicles_byAge!G22:K22) -> 4.15669753 | AG22: =SUMPRODUCT(H22:L22,Vehicles_byAge!H22:L22)/SUM(Vehicles_byAge!H22:L22) -> 4.192326862 | AH22: =SUMPRODUCT(D22:Z22,Vehicles_byAge!D22:Z22)/SUM(Vehicles_byAge!D22:Z22) -> 4.179454866
B23: =Vehicles!B18 -> 2029 | C23: 4 | D23: 4.02 | E23: 4.04211 | F23: 4.066564766 | G23: 4.093627754 | H23: 4.123595156 | I23: 4.156800612 | J23: 4.193620741 | K23: 4.234481644 | L23: 4.279866581 | M23: 4.330325089 | N23: 4.386483829 | O23: 4.44905958 | P23: 4.518874854 | Q23: 4.596876762 | R23: 4.684159922 | S23: 4.781994414 | T23: 4.89186009 | U23: 5.015488897 | V23: 5.154917415 | W23: 5.312552445 | X23: 5.491253427 | Y23: 5.694436666 | Z23: 5.926208066 | AB23: 2029 | AC23: =SUMPRODUCT(D23:H23,Vehicles_byAge!D23:H23)/SUM(Vehicles_byAge!D23:H23) -> 4.067503283 | AD23: =SUMPRODUCT(E23:I23,Vehicles_byAge!E23:I23)/SUM(Vehicles_byAge!E23:I23) -> 4.094469933 | AE23: =SUMPRODUCT(F23:J23,Vehicles_byAge!F23:J23)/SUM(Vehicles_byAge!F23:J23) -> 4.124137842 | AF23: =SUMPRODUCT(G23:K23,Vehicles_byAge!G23:K23)/SUM(Vehicles_byAge!G23:K23) -> 4.15669753 | AG23: =SUMPRODUCT(H23:L23,Vehicles_byAge!H23:L23)/SUM(Vehicles_byAge!H23:L23) -> 4.192326862 | AH23: =SUMPRODUCT(D23:Z23,Vehicles_byAge!D23:Z23)/SUM(Vehicles_byAge!D23:Z23) -> 4.18332032
B24: =Vehicles!B19 -> 2030 | C24: 4 | D24: 4.02 | E24: 4.04211 | F24: 4.066564766 | G24: 4.093627754 | H24: 4.123595156 | I24: 4.156800612 | J24: 4.193620741 | K24: 4.234481644 | L24: 4.279866581 | M24: 4.330325089 | N24: 4.386483829 | O24: 4.44905958 | P24: 4.518874854 | Q24: 4.596876762 | R24: 4.684159922 | S24: 4.781994414 | T24: 4.89186009 | U24: 5.015488897 | V24: 5.154917415 | W24: 5.312552445 | X24: 5.491253427 | Y24: 5.694436666 | Z24: 5.926208066 | AB24: 2030 | AC24: =SUMPRODUCT(D24:H24,Vehicles_byAge!D24:H24)/SUM(Vehicles_byAge!D24:H24) -> 4.067503283 | AD24: =SUMPRODUCT(E24:I24,Vehicles_byAge!E24:I24)/SUM(Vehicles_byAge!E24:I24) -> 4.094469933 | AE24: =SUMPRODUCT(F24:J24,Vehicles_byAge!F24:J24)/SUM(Vehicles_byAge!F24:J24) -> 4.124137842 | AF24: =SUMPRODUCT(G24:K24,Vehicles_byAge!G24:K24)/SUM(Vehicles_byAge!G24:K24) -> 4.15669753 | AG24: =SUMPRODUCT(H24:L24,Vehicles_byAge!H24:L24)/SUM(Vehicles_byAge!H24:L24) -> 4.192326862 | AH24: =SUMPRODUCT(D24:Z24,Vehicles_byAge!D24:Z24)/SUM(Vehicles_byAge!D24:Z24) -> 4.186745728
B25: =Vehicles!B20 -> 2031 | C25: 4 | D25: 4.02 | E25: 4.04211 | F25: 4.066564766 | G25: 4.093627754 | H25: 4.123595156 | I25: 4.156800612 | J25: 4.193620741 | K25: 4.234481644 | L25: 4.279866581 | M25: 4.330325089 | N25: 4.386483829 | O25: 4.44905958 | P25: 4.518874854 | Q25: 4.596876762 | R25: 4.684159922 | S25: 4.781994414 | T25: 4.89186009 | U25: 5.015488897 | V25: 5.154917415 | W25: 5.312552445 | X25: 5.491253427 | Y25: 5.694436666 | Z25: 5.926208066 | AB25: 2031 | AC25: =SUMPRODUCT(D25:H25,Vehicles_byAge!D25:H25)/SUM(Vehicles_byAge!D25:H25) -> 4.067503283 | AD25: =SUMPRODUCT(E25:I25,Vehicles_byAge!E25:I25)/SUM(Vehicles_byAge!E25:I25) -> 4.094469933 | AE25: =SUMPRODUCT(F25:J25,Vehicles_byAge!F25:J25)/SUM(Vehicles_byAge!F25:J25) -> 4.124137842 | AF25: =SUMPRODUCT(G25:K25,Vehicles_byAge!G25:K25)/SUM(Vehicles_byAge!G25:K25) -> 4.15669753 | AG25: =SUMPRODUCT(H25:L25,Vehicles_byAge!H25:L25)/SUM(Vehicles_byAge!H25:L25) -> 4.192326862 | AH25: =SUMPRODUCT(D25:Z25,Vehicles_byAge!D25:Z25)/SUM(Vehicles_byAge!D25:Z25) -> 4.18955141
B26: =Vehicles!B21 -> 2032 | C26: 4 | D26: 4.02 | E26: 4.04211 | F26: 4.066564766 | G26: 4.093627754 | H26: 4.123595156 | I26: 4.156800612 | J26: 4.193620741 | K26: 4.234481644 | L26: 4.279866581 | M26: 4.330325089 | N26: 4.386483829 | O26: 4.44905958 | P26: 4.518874854 | Q26: 4.596876762 | R26: 4.684159922 | S26: 4.781994414 | T26: 4.89186009 | U26: 5.015488897 | V26: 5.154917415 | W26: 5.312552445 | X26: 5.491253427 | Y26: 5.694436666 | Z26: 5.926208066 | AB26: 2032 | AC26: =SUMPRODUCT(D26:H26,Vehicles_byAge!D26:H26)/SUM(Vehicles_byAge!D26:H26) -> 4.067503283 | AD26: =SUMPRODUCT(E26:I26,Vehicles_byAge!E26:I26)/SUM(Vehicles_byAge!E26:I26) -> 4.094469933 | AE26: =SUMPRODUCT(F26:J26,Vehicles_byAge!F26:J26)/SUM(Vehicles_byAge!F26:J26) -> 4.124137842 | AF26: =SUMPRODUCT(G26:K26,Vehicles_byAge!G26:K26)/SUM(Vehicles_byAge!G26:K26) -> 4.15669753 | AG26: =SUMPRODUCT(H26:L26,Vehicles_byAge!H26:L26)/SUM(Vehicles_byAge!H26:L26) -> 4.192326862 | AH26: =SUMPRODUCT(D26:Z26,Vehicles_byAge!D26:Z26)/SUM(Vehicles_byAge!D26:Z26) -> 4.191622784
B27: =Vehicles!B22 -> 2033 | C27: 4 | D27: 4.02 | E27: 4.04211 | F27: 4.066564766 | G27: 4.093627754 | H27: 4.123595156 | I27: =H26*(1+I$8) -> 4.156800612 | J27: 4.193620741 | K27: 4.234481644 | L27: 4.279866581 | M27: 4.330325089 | N27: 4.386483829 | O27: 4.44905958 | P27: 4.518874854 | Q27: 4.596876762 | R27: 4.684159922 | S27: 4.781994414 | T27: 4.89186009 | U27: 5.015488897 | V27: 5.154917415 | W27: 5.312552445 | X27: 5.491253427 | Y27: =X26*(1+Y$8) -> 5.694436666 | Z27: 5.926208066 | AB27: 2033 | AC27: =SUMPRODUCT(D27:H27,Vehicles_byAge!D27:H27)/SUM(Vehicles_byAge!D27:H27) -> 4.067503283 | AD27: =SUMPRODUCT(E27:I27,Vehicles_byAge!E27:I27)/SUM(Vehicles_byAge!E27:I27) -> 4.094469933 | AE27: =SUMPRODUCT(F27:J27,Vehicles_byAge!F27:J27)/SUM(Vehicles_byAge!F27:J27) -> 4.124137842 | AF27: =SUMPRODUCT(G27:K27,Vehicles_byAge!G27:K27)/SUM(Vehicles_byAge!G27:K27) -> 4.15669753 | AG27: =SUMPRODUCT(H27:L27,Vehicles_byAge!H27:L27)/SUM(Vehicles_byAge!H27:L27) -> 4.192326862 | AH27: =SUMPRODUCT(D27:Z27,Vehicles_byAge!D27:Z27)/SUM(Vehicles_byAge!D27:Z27) -> 4.192964606
B28: =Vehicles!B23 -> 2034 | C28: 4 | D28: 4.02 | E28: 4.04211 | F28: =E27*(1+F$8) -> 4.066564766 | G28: 4.093627754 | H28: 4.123595156 | I28: 4.156800612 | J28: 4.193620741 | K28: 4.234481644 | L28: 4.279866581 | M28: 4.330325089 | N28: 4.386483829 | O28: 4.44905958 | P28: 4.518874854 | Q28: 4.596876762 | R28: 4.684159922 | S28: 4.781994414 | T28: 4.89186009 | U28: 5.015488897 | V28: 5.154917415 | W28: 5.312552445 | X28: 5.491253427 | Y28: 5.694436666 | Z28: 5.926208066 | AB28: 2034 | AC28: =SUMPRODUCT(D28:H28,Vehicles_byAge!D28:H28)/SUM(Vehicles_byAge!D28:H28) -> 4.067503283 | AD28: =SUMPRODUCT(E28:I28,Vehicles_byAge!E28:I28)/SUM(Vehicles_byAge!E28:I28) -> 4.094469933 | AE28: =SUMPRODUCT(F28:J28,Vehicles_byAge!F28:J28)/SUM(Vehicles_byAge!F28:J28) -> 4.124137842 | AF28: =SUMPRODUCT(G28:K28,Vehicles_byAge!G28:K28)/SUM(Vehicles_byAge!G28:K28) -> 4.15669753 | AG28: =SUMPRODUCT(H28:L28,Vehicles_byAge!H28:L28)/SUM(Vehicles_byAge!H28:L28) -> 4.192326862 | AH28: =SUMPRODUCT(D28:Z28,Vehicles_byAge!D28:Z28)/SUM(Vehicles_byAge!D28:Z28) -> 4.193705171
B29: =Vehicles!B24 -> 2035 | C29: 4 | D29: 4.02 | E29: 4.04211 | F29: 4.066564766 | G29: 4.093627754 | H29: 4.123595156 | I29: 4.156800612 | J29: 4.193620741 | K29: 4.234481644 | L29: 4.279866581 | M29: 4.330325089 | N29: 4.386483829 | O29: 4.44905958 | P29: 4.518874854 | Q29: 4.596876762 | R29: 4.684159922 | S29: 4.781994414 | T29: 4.89186009 | U29: 5.015488897 | V29: 5.154917415 | W29: 5.312552445 | X29: 5.491253427 | Y29: 5.694436666 | Z29: 5.926208066 | AB29: 2035 | AC29: =SUMPRODUCT(D29:H29,Vehicles_byAge!D29:H29)/SUM(Vehicles_byAge!D29:H29) -> 4.067503283 | AD29: =SUMPRODUCT(E29:I29,Vehicles_byAge!E29:I29)/SUM(Vehicles_byAge!E29:I29) -> 4.094469933 | AE29: =SUMPRODUCT(F29:J29,Vehicles_byAge!F29:J29)/SUM(Vehicles_byAge!F29:J29) -> 4.124137842 | AF29: =SUMPRODUCT(G29:K29,Vehicles_byAge!G29:K29)/SUM(Vehicles_byAge!G29:K29) -> 4.15669753 | AG29: =SUMPRODUCT(H29:L29,Vehicles_byAge!H29:L29)/SUM(Vehicles_byAge!H29:L29) -> 4.192326862 | AH29: =SUMPRODUCT(D29:Z29,Vehicles_byAge!D29:Z29)/SUM(Vehicles_byAge!D29:Z29) -> 4.194041912
B30: =Vehicles!B25 -> 2036 | C30: 4 | D30: 4.02 | E30: 4.04211 | F30: 4.066564766 | G30: 4.093627754 | H30: 4.123595156 | I30: 4.156800612 | J30: 4.193620741 | K30: 4.234481644 | L30: 4.279866581 | M30: 4.330325089 | N30: 4.386483829 | O30: 4.44905958 | P30: 4.518874854 | Q30: 4.596876762 | R30: 4.684159922 | S30: 4.781994414 | T30: 4.89186009 | U30: 5.015488897 | V30: 5.154917415 | W30: 5.312552445 | X30: 5.491253427 | Y30: 5.694436666 | Z30: 5.926208066 | AB30: 2036 | AC30: =SUMPRODUCT(D30:H30,Vehicles_byAge!D30:H30)/SUM(Vehicles_byAge!D30:H30) -> 4.067503283 | AD30: =SUMPRODUCT(E30:I30,Vehicles_byAge!E30:I30)/SUM(Vehicles_byAge!E30:I30) -> 4.094469933 | AE30: =SUMPRODUCT(F30:J30,Vehicles_byAge!F30:J30)/SUM(Vehicles_byAge!F30:J30) -> 4.124137842 | AF30: =SUMPRODUCT(G30:K30,Vehicles_byAge!G30:K30)/SUM(Vehicles_byAge!G30:K30) -> 4.15669753 | AG30: =SUMPRODUCT(H30:L30,Vehicles_byAge!H30:L30)/SUM(Vehicles_byAge!H30:L30) -> 4.192326862 | AH30: =SUMPRODUCT(D30:Z30,Vehicles_byAge!D30:Z30)/SUM(Vehicles_byAge!D30:Z30) -> 4.194162967
B31: =Vehicles!B26 -> 2037 | C31: 4 | D31: 4.02 | E31: 4.04211 | F31: 4.066564766 | G31: 4.093627754 | H31: 4.123595156 | I31: 4.156800612 | J31: 4.193620741 | K31: 4.234481644 | L31: 4.279866581 | M31: 4.330325089 | N31: 4.386483829 | O31: 4.44905958 | P31: 4.518874854 | Q31: 4.596876762 | R31: 4.684159922 | S31: 4.781994414 | T31: 4.89186009 | U31: 5.015488897 | V31: 5.154917415 | W31: 5.312552445 | X31: 5.491253427 | Y31: 5.694436666 | Z31: 5.926208066 | AB31: 2037 | AC31: =SUMPRODUCT(D31:H31,Vehicles_byAge!D31:H31)/SUM(Vehicles_byAge!D31:H31) -> 4.067503283 | AD31: =SUMPRODUCT(E31:I31,Vehicles_byAge!E31:I31)/SUM(Vehicles_byAge!E31:I31) -> 4.094469933 | AE31: =SUMPRODUCT(F31:J31,Vehicles_byAge!F31:J31)/SUM(Vehicles_byAge!F31:J31) -> 4.124137842 | AF31: =SUMPRODUCT(G31:K31,Vehicles_byAge!G31:K31)/SUM(Vehicles_byAge!G31:K31) -> 4.15669753 | AG31: =SUMPRODUCT(H31:L31,Vehicles_byAge!H31:L31)/SUM(Vehicles_byAge!H31:L31) -> 4.192326862 | AH31: =SUMPRODUCT(D31:Z31,Vehicles_byAge!D31:Z31)/SUM(Vehicles_byAge!D31:Z31) -> 4.194195422
B32: =Vehicles!B27 -> 2038 | C32: 4 | D32: 4.02 | E32: 4.04211 | F32: 4.066564766 | G32: 4.093627754 | H32: 4.123595156 | I32: 4.156800612 | J32: 4.193620741 | K32: 4.234481644 | L32: 4.279866581 | M32: 4.330325089 | N32: 4.386483829 | O32: 4.44905958 | P32: 4.518874854 | Q32: 4.596876762 | R32: 4.684159922 | S32: 4.781994414 | T32: 4.89186009 | U32: 5.015488897 | V32: 5.154917415 | W32: 5.312552445 | X32: 5.491253427 | Y32: 5.694436666 | Z32: 5.926208066 | AB32: 2038 | AC32: =SUMPRODUCT(D32:H32,Vehicles_byAge!D32:H32)/SUM(Vehicles_byAge!D32:H32) -> 4.067503283 | AD32: =SUMPRODUCT(E32:I32,Vehicles_byAge!E32:I32)/SUM(Vehicles_byAge!E32:I32) -> 4.094469933 | AE32: =SUMPRODUCT(F32:J32,Vehicles_byAge!F32:J32)/SUM(Vehicles_byAge!F32:J32) -> 4.124137842 | AF32: =SUMPRODUCT(G32:K32,Vehicles_byAge!G32:K32)/SUM(Vehicles_byAge!G32:K32) -> 4.15669753 | AG32: =SUMPRODUCT(H32:L32,Vehicles_byAge!H32:L32)/SUM(Vehicles_byAge!H32:L32) -> 4.192326862 | AH32: =SUMPRODUCT(D32:Z32,Vehicles_byAge!D32:Z32)/SUM(Vehicles_byAge!D32:Z32) -> 4.194201259
B33: =Vehicles!B28 -> 2039 | C33: 4 | D33: 4.02 | E33: 4.04211 | F33: 4.066564766 | G33: 4.093627754 | H33: 4.123595156 | I33: 4.156800612 | J33: 4.193620741 | K33: 4.234481644 | L33: 4.279866581 | M33: 4.330325089 | N33: 4.386483829 | O33: 4.44905958 | P33: 4.518874854 | Q33: 4.596876762 | R33: 4.684159922 | S33: 4.781994414 | T33: 4.89186009 | U33: 5.015488897 | V33: 5.154917415 | W33: 5.312552445 | X33: 5.491253427 | Y33: 5.694436666 | Z33: 5.926208066 | AB33: 2039 | AC33: =SUMPRODUCT(D33:H33,Vehicles_byAge!D33:H33)/SUM(Vehicles_byAge!D33:H33) -> 4.067503283 | AD33: =SUMPRODUCT(E33:I33,Vehicles_byAge!E33:I33)/SUM(Vehicles_byAge!E33:I33) -> 4.094469933 | AE33: =SUMPRODUCT(F33:J33,Vehicles_byAge!F33:J33)/SUM(Vehicles_byAge!F33:J33) -> 4.124137842 | AF33: =SUMPRODUCT(G33:K33,Vehicles_byAge!G33:K33)/SUM(Vehicles_byAge!G33:K33) -> 4.15669753 | AG33: =SUMPRODUCT(H33:L33,Vehicles_byAge!H33:L33)/SUM(Vehicles_byAge!H33:L33) -> 4.192326862 | AH33: =SUMPRODUCT(D33:Z33,Vehicles_byAge!D33:Z33)/SUM(Vehicles_byAge!D33:Z33) -> 4.194201758
B34: =Vehicles!B29 -> 2040 | C34: 4 | D34: 4.02 | E34: 4.04211 | F34: 4.066564766 | G34: 4.093627754 | H34: 4.123595156 | I34: 4.156800612 | J34: 4.193620741 | K34: 4.234481644 | L34: 4.279866581 | M34: 4.330325089 | N34: 4.386483829 | O34: 4.44905958 | P34: 4.518874854 | Q34: 4.596876762 | R34: 4.684159922 | S34: 4.781994414 | T34: 4.89186009 | U34: 5.015488897 | V34: 5.154917415 | W34: 5.312552445 | X34: 5.491253427 | Y34: 5.694436666 | Z34: 5.926208066 | AB34: 2040 | AC34: =SUMPRODUCT(D34:H34,Vehicles_byAge!D34:H34)/SUM(Vehicles_byAge!D34:H34) -> 4.067503283 | AD34: =SUMPRODUCT(E34:I34,Vehicles_byAge!E34:I34)/SUM(Vehicles_byAge!E34:I34) -> 4.094469933 | AE34: =SUMPRODUCT(F34:J34,Vehicles_byAge!F34:J34)/SUM(Vehicles_byAge!F34:J34) -> 4.124137842 | AF34: =SUMPRODUCT(G34:K34,Vehicles_byAge!G34:K34)/SUM(Vehicles_byAge!G34:K34) -> 4.15669753 | AG34: =SUMPRODUCT(H34:L34,Vehicles_byAge!H34:L34)/SUM(Vehicles_byAge!H34:L34) -> 4.192326862 | AH34: =SUMPRODUCT(D34:Z34,Vehicles_byAge!D34:Z34)/SUM(Vehicles_byAge!D34:Z34) -> 4.194201717
B35: =Vehicles!B30 -> 2041 | C35: 4 | D35: 4.02 | E35: 4.04211 | F35: 4.066564766 | G35: 4.093627754 | H35: 4.123595156 | I35: 4.156800612 | J35: 4.193620741 | K35: 4.234481644 | L35: 4.279866581 | M35: 4.330325089 | N35: 4.386483829 | O35: 4.44905958 | P35: 4.518874854 | Q35: 4.596876762 | R35: 4.684159922 | S35: 4.781994414 | T35: 4.89186009 | U35: 5.015488897 | V35: 5.154917415 | W35: 5.312552445 | X35: 5.491253427 | Y35: 5.694436666 | Z35: 5.926208066 | AB35: 2041 | AC35: =SUMPRODUCT(D35:H35,Vehicles_byAge!D35:H35)/SUM(Vehicles_byAge!D35:H35) -> 4.067503283 | AD35: =SUMPRODUCT(E35:I35,Vehicles_byAge!E35:I35)/SUM(Vehicles_byAge!E35:I35) -> 4.094469933 | AE35: =SUMPRODUCT(F35:J35,Vehicles_byAge!F35:J35)/SUM(Vehicles_byAge!F35:J35) -> 4.124137842 | AF35: =SUMPRODUCT(G35:K35,Vehicles_byAge!G35:K35)/SUM(Vehicles_byAge!G35:K35) -> 4.15669753 | AG35: =SUMPRODUCT(H35:L35,Vehicles_byAge!H35:L35)/SUM(Vehicles_byAge!H35:L35) -> 4.192326862 | AH35: =SUMPRODUCT(D35:Z35,Vehicles_byAge!D35:Z35)/SUM(Vehicles_byAge!D35:Z35) -> 4.194201699
B36: =Vehicles!B31 -> 2042 | C36: 4 | D36: 4.02 | E36: 4.04211 | F36: 4.066564766 | G36: 4.093627754 | H36: 4.123595156 | I36: 4.156800612 | J36: 4.193620741 | K36: 4.234481644 | L36: 4.279866581 | M36: 4.330325089 | N36: 4.386483829 | O36: 4.44905958 | P36: 4.518874854 | Q36: 4.596876762 | R36: 4.684159922 | S36: 4.781994414 | T36: 4.89186009 | U36: 5.015488897 | V36: 5.154917415 | W36: 5.312552445 | X36: 5.491253427 | Y36: 5.694436666 | Z36: 5.926208066 | AB36: 2042 | AC36: =SUMPRODUCT(D36:H36,Vehicles_byAge!D36:H36)/SUM(Vehicles_byAge!D36:H36) -> 4.067503283 | AD36: =SUMPRODUCT(E36:I36,Vehicles_byAge!E36:I36)/SUM(Vehicles_byAge!E36:I36) -> 4.094469933 | AE36: =SUMPRODUCT(F36:J36,Vehicles_byAge!F36:J36)/SUM(Vehicles_byAge!F36:J36) -> 4.124137842 | AF36: =SUMPRODUCT(G36:K36,Vehicles_byAge!G36:K36)/SUM(Vehicles_byAge!G36:K36) -> 4.15669753 | AG36: =SUMPRODUCT(H36:L36,Vehicles_byAge!H36:L36)/SUM(Vehicles_byAge!H36:L36) -> 4.192326862 | AH36: =SUMPRODUCT(D36:Z36,Vehicles_byAge!D36:Z36)/SUM(Vehicles_byAge!D36:Z36) -> 4.194201695
B37: =Vehicles!B32 -> 2043 | C37: 4 | D37: 4.02 | E37: 4.04211 | F37: 4.066564766 | G37: 4.093627754 | H37: 4.123595156 | I37: 4.156800612 | J37: 4.193620741 | K37: 4.234481644 | L37: 4.279866581 | M37: 4.330325089 | N37: 4.386483829 | O37: 4.44905958 | P37: 4.518874854 | Q37: 4.596876762 | R37: 4.684159922 | S37: 4.781994414 | T37: 4.89186009 | U37: 5.015488897 | V37: 5.154917415 | W37: 5.312552445 | X37: 5.491253427 | Y37: 5.694436666 | Z37: 5.926208066 | AB37: 2043 | AC37: =SUMPRODUCT(D37:H37,Vehicles_byAge!D37:H37)/SUM(Vehicles_byAge!D37:H37) -> 4.067503283 | AD37: =SUMPRODUCT(E37:I37,Vehicles_byAge!E37:I37)/SUM(Vehicles_byAge!E37:I37) -> 4.094469933 | AE37: =SUMPRODUCT(F37:J37,Vehicles_byAge!F37:J37)/SUM(Vehicles_byAge!F37:J37) -> 4.124137842 | AF37: =SUMPRODUCT(G37:K37,Vehicles_byAge!G37:K37)/SUM(Vehicles_byAge!G37:K37) -> 4.15669753 | AG37: =SUMPRODUCT(H37:L37,Vehicles_byAge!H37:L37)/SUM(Vehicles_byAge!H37:L37) -> 4.192326862 | AH37: =SUMPRODUCT(D37:Z37,Vehicles_byAge!D37:Z37)/SUM(Vehicles_byAge!D37:Z37) -> 4.194201695
B38: =Vehicles!B33 -> 2044 | C38: 4 | D38: 4.02 | E38: 4.04211 | F38: 4.066564766 | G38: 4.093627754 | H38: 4.123595156 | I38: 4.156800612 | J38: 4.193620741 | K38: 4.234481644 | L38: 4.279866581 | M38: 4.330325089 | N38: 4.386483829 | O38: 4.44905958 | P38: 4.518874854 | Q38: 4.596876762 | R38: 4.684159922 | S38: 4.781994414 | T38: 4.89186009 | U38: 5.015488897 | V38: 5.154917415 | W38: 5.312552445 | X38: 5.491253427 | Y38: 5.694436666 | Z38: 5.926208066 | AB38: 2044 | AC38: =SUMPRODUCT(D38:H38,Vehicles_byAge!D38:H38)/SUM(Vehicles_byAge!D38:H38) -> 4.067503283 | AD38: =SUMPRODUCT(E38:I38,Vehicles_byAge!E38:I38)/SUM(Vehicles_byAge!E38:I38) -> 4.094469933 | AE38: =SUMPRODUCT(F38:J38,Vehicles_byAge!F38:J38)/SUM(Vehicles_byAge!F38:J38) -> 4.124137842 | AF38: =SUMPRODUCT(G38:K38,Vehicles_byAge!G38:K38)/SUM(Vehicles_byAge!G38:K38) -> 4.15669753 | AG38: =SUMPRODUCT(H38:L38,Vehicles_byAge!H38:L38)/SUM(Vehicles_byAge!H38:L38) -> 4.192326862 | AH38: =SUMPRODUCT(D38:Z38,Vehicles_byAge!D38:Z38)/SUM(Vehicles_byAge!D38:Z38) -> 4.194201695
B39: =Vehicles!B34 -> 2045 | C39: 4 | D39: 4.02 | E39: 4.04211 | F39: 4.066564766 | G39: 4.093627754 | H39: 4.123595156 | I39: 4.156800612 | J39: 4.193620741 | K39: 4.234481644 | L39: 4.279866581 | M39: 4.330325089 | N39: 4.386483829 | O39: 4.44905958 | P39: 4.518874854 | Q39: 4.596876762 | R39: 4.684159922 | S39: 4.781994414 | T39: 4.89186009 | U39: 5.015488897 | V39: 5.154917415 | W39: 5.312552445 | X39: 5.491253427 | Y39: 5.694436666 | Z39: 5.926208066 | AB39: 2045 | AC39: =SUMPRODUCT(D39:H39,Vehicles_byAge!D39:H39)/SUM(Vehicles_byAge!D39:H39) -> 4.067503283 | AD39: =SUMPRODUCT(E39:I39,Vehicles_byAge!E39:I39)/SUM(Vehicles_byAge!E39:I39) -> 4.094469933 | AE39: =SUMPRODUCT(F39:J39,Vehicles_byAge!F39:J39)/SUM(Vehicles_byAge!F39:J39) -> 4.124137842 | AF39: =SUMPRODUCT(G39:K39,Vehicles_byAge!G39:K39)/SUM(Vehicles_byAge!G39:K39) -> 4.15669753 | AG39: =SUMPRODUCT(H39:L39,Vehicles_byAge!H39:L39)/SUM(Vehicles_byAge!H39:L39) -> 4.192326862 | AH39: =SUMPRODUCT(D39:Z39,Vehicles_byAge!D39:Z39)/SUM(Vehicles_byAge!D39:Z39) -> 4.194201695
B40: =Vehicles!B35 -> 2046 | C40: 4 | D40: 4.02 | E40: 4.04211 | F40: 4.066564766 | G40: 4.093627754 | H40: 4.123595156 | I40: 4.156800612 | J40: 4.193620741 | K40: 4.234481644 | L40: 4.279866581 | M40: 4.330325089 | N40: 4.386483829 | O40: 4.44905958 | P40: 4.518874854 | Q40: 4.596876762 | R40: 4.684159922 | S40: 4.781994414 | T40: 4.89186009 | U40: 5.015488897 | V40: 5.154917415 | W40: 5.312552445 | X40: 5.491253427 | Y40: 5.694436666 | Z40: 5.926208066 | AB40: 2046 | AC40: =SUMPRODUCT(D40:H40,Vehicles_byAge!D40:H40)/SUM(Vehicles_byAge!D40:H40) -> 4.067503283 | AD40: =SUMPRODUCT(E40:I40,Vehicles_byAge!E40:I40)/SUM(Vehicles_byAge!E40:I40) -> 4.094469933 | AE40: =SUMPRODUCT(F40:J40,Vehicles_byAge!F40:J40)/SUM(Vehicles_byAge!F40:J40) -> 4.124137842 | AF40: =SUMPRODUCT(G40:K40,Vehicles_byAge!G40:K40)/SUM(Vehicles_byAge!G40:K40) -> 4.15669753 | AG40: =SUMPRODUCT(H40:L40,Vehicles_byAge!H40:L40)/SUM(Vehicles_byAge!H40:L40) -> 4.192326862 | AH40: =SUMPRODUCT(D40:Z40,Vehicles_byAge!D40:Z40)/SUM(Vehicles_byAge!D40:Z40) -> 4.194201695
B41: =Vehicles!B36 -> 2047 | C41: 4 | D41: 4.02 | E41: 4.04211 | F41: 4.066564766 | G41: 4.093627754 | H41: 4.123595156 | I41: 4.156800612 | J41: 4.193620741 | K41: 4.234481644 | L41: 4.279866581 | M41: 4.330325089 | N41: 4.386483829 | O41: 4.44905958 | P41: 4.518874854 | Q41: 4.596876762 | R41: 4.684159922 | S41: 4.781994414 | T41: 4.89186009 | U41: 5.015488897 | V41: 5.154917415 | W41: 5.312552445 | X41: 5.491253427 | Y41: 5.694436666 | Z41: 5.926208066 | AB41: 2047 | AC41: =SUMPRODUCT(D41:H41,Vehicles_byAge!D41:H41)/SUM(Vehicles_byAge!D41:H41) -> 4.067503283 | AD41: =SUMPRODUCT(E41:I41,Vehicles_byAge!E41:I41)/SUM(Vehicles_byAge!E41:I41) -> 4.094469933 | AE41: =SUMPRODUCT(F41:J41,Vehicles_byAge!F41:J41)/SUM(Vehicles_byAge!F41:J41) -> 4.124137842 | AF41: =SUMPRODUCT(G41:K41,Vehicles_byAge!G41:K41)/SUM(Vehicles_byAge!G41:K41) -> 4.15669753 | AG41: =SUMPRODUCT(H41:L41,Vehicles_byAge!H41:L41)/SUM(Vehicles_byAge!H41:L41) -> 4.192326862 | AH41: =SUMPRODUCT(D41:Z41,Vehicles_byAge!D41:Z41)/SUM(Vehicles_byAge!D41:Z41) -> 4.194201695
B42: =Vehicles!B37 -> 2048 | C42: 4 | D42: 4.02 | E42: 4.04211 | F42: 4.066564766 | G42: 4.093627754 | H42: 4.123595156 | I42: 4.156800612 | J42: 4.193620741 | K42: 4.234481644 | L42: 4.279866581 | M42: 4.330325089 | N42: 4.386483829 | O42: 4.44905958 | P42: 4.518874854 | Q42: 4.596876762 | R42: 4.684159922 | S42: 4.781994414 | T42: 4.89186009 | U42: 5.015488897 | V42: 5.154917415 | W42: 5.312552445 | X42: 5.491253427 | Y42: 5.694436666 | Z42: 5.926208066 | AB42: 2048 | AC42: =SUMPRODUCT(D42:H42,Vehicles_byAge!D42:H42)/SUM(Vehicles_byAge!D42:H42) -> 4.067503283 | AD42: =SUMPRODUCT(E42:I42,Vehicles_byAge!E42:I42)/SUM(Vehicles_byAge!E42:I42) -> 4.094469933 | AE42: =SUMPRODUCT(F42:J42,Vehicles_byAge!F42:J42)/SUM(Vehicles_byAge!F42:J42) -> 4.124137842 | AF42: =SUMPRODUCT(G42:K42,Vehicles_byAge!G42:K42)/SUM(Vehicles_byAge!G42:K42) -> 4.15669753 | AG42: =SUMPRODUCT(H42:L42,Vehicles_byAge!H42:L42)/SUM(Vehicles_byAge!H42:L42) -> 4.192326862 | AH42: =SUMPRODUCT(D42:Z42,Vehicles_byAge!D42:Z42)/SUM(Vehicles_byAge!D42:Z42) -> 4.194201695
B43: =Vehicles!B38 -> 2049 | C43: 4 | D43: 4.02 | E43: 4.04211 | F43: 4.066564766 | G43: 4.093627754 | H43: =G42*(1+H$8) -> 4.123595156 | I43: 4.156800612 | J43: 4.193620741 | K43: 4.234481644 | L43: 4.279866581 | M43: 4.330325089 | N43: 4.386483829 | O43: 4.44905958 | P43: 4.518874854 | Q43: 4.596876762 | R43: 4.684159922 | S43: 4.781994414 | T43: 4.89186009 | U43: 5.015488897 | V43: 5.154917415 | W43: 5.312552445 | X43: 5.491253427 | Y43: 5.694436666 | Z43: 5.926208066 | AB43: 2049 | AC43: =SUMPRODUCT(D43:H43,Vehicles_byAge!D43:H43)/SUM(Vehicles_byAge!D43:H43) -> 4.067503283 | AD43: =SUMPRODUCT(E43:I43,Vehicles_byAge!E43:I43)/SUM(Vehicles_byAge!E43:I43) -> 4.094469933 | AE43: =SUMPRODUCT(F43:J43,Vehicles_byAge!F43:J43)/SUM(Vehicles_byAge!F43:J43) -> 4.124137842 | AF43: =SUMPRODUCT(G43:K43,Vehicles_byAge!G43:K43)/SUM(Vehicles_byAge!G43:K43) -> 4.15669753 | AG43: =SUMPRODUCT(H43:L43,Vehicles_byAge!H43:L43)/SUM(Vehicles_byAge!H43:L43) -> 4.192326862 | AH43: =SUMPRODUCT(D43:Z43,Vehicles_byAge!D43:Z43)/SUM(Vehicles_byAge!D43:Z43) -> 4.194201695
B44: =Vehicles!B39 -> 2050 | C44: 4 | D44: 4.02 | E44: 4.04211 | F44: =E43*(1+F$8) -> 4.066564766 | G44: 4.093627754 | H44: 4.123595156 | I44: 4.156800612 | J44: 4.193620741 | K44: 4.234481644 | L44: 4.279866581 | M44: 4.330325089 | N44: 4.386483829 | O44: 4.44905958 | P44: 4.518874854 | Q44: 4.596876762 | R44: 4.684159922 | S44: 4.781994414 | T44: 4.89186009 | U44: 5.015488897 | V44: 5.154917415 | W44: 5.312552445 | X44: 5.491253427 | Y44: 5.694436666 | Z44: 5.926208066 | AB44: 2050 | AC44: =SUMPRODUCT(D44:H44,Vehicles_byAge!D44:H44)/SUM(Vehicles_byAge!D44:H44) -> 4.067503283 | AD44: =SUMPRODUCT(E44:I44,Vehicles_byAge!E44:I44)/SUM(Vehicles_byAge!E44:I44) -> 4.094469933 | AE44: =SUMPRODUCT(F44:J44,Vehicles_byAge!F44:J44)/SUM(Vehicles_byAge!F44:J44) -> 4.124137842 | AF44: =SUMPRODUCT(G44:K44,Vehicles_byAge!G44:K44)/SUM(Vehicles_byAge!G44:K44) -> 4.15669753 | AG44: =SUMPRODUCT(H44:L44,Vehicles_byAge!H44:L44)/SUM(Vehicles_byAge!H44:L44) -> 4.192326862 | AH44: =SUMPRODUCT(D44:Z44,Vehicles_byAge!D44:Z44)/SUM(Vehicles_byAge!D44:Z44) -> 4.194201695

Sheet Emissions
B2: Vehicular Air Pollution Information System
B7: Year | C7: Total | D7: VKT | E7: Effective | F7: Emissions
C8: Vehicles | D8: per day | E8: EF | F8: tons
B9: =Vehicles!B9 -> 2020 | C9: =Vehicles!C9 -> 100000 | D9: =Inputs!K19 -> 40 | E9: =EmFactor!AH14 -> 4.155882955 | F9: =C9*D9*E9*365/1000000 -> 6067.589114
B10: =Vehicles!B10 -> 2021 | C10: =Vehicles!C10 -> 109770.2462 | D10: =D9 -> 40 | E10: =EmFactor!AH15 -> 4.155191361 | F10: =C10*D10*E10*365/1000000 -> 6659.299127
B11: =Vehicles!B11 -> 2022 | C11: =Vehicles!C11 -> 119580.7752 | D11: =D10 -> 40 | E11: =EmFactor!AH16 -> 4.156717498 | F11: 7257.12711
B12: =Vehicles!B12 -> 2023 | C12: =Vehicles!C12 -> 129314.4657 | D12: 40 | E12: =EmFactor!AH17 -> 4.159436917 | F12: 7852.980296
B13: =Vehicles!B13 -> 2024 | C13: =Vehicles!C13 -> 138893.8422 | D13: 40 | E13: =EmFactor!AH18 -> 4.1629284 | F13: 8441.794754
B14: =Vehicles!B14 -> 2025 | C14: =Vehicles!C14 -> 148247.4742 | D14: 40 | E14: =EmFactor!AH19 -> 4.166898989 | F14: 9018.890854
B15: =Vehicles!B15 -> 2026 | C15: =Vehicles!C15 -> 157312.9407 | D15: 40 | E15: =EmFactor!AH20 -> 4.17109612 | F15: 9580.043991
B16: =Vehicles!B16 -> 2027 | C16: =Vehicles!C16 -> 166041.3412 | D16: 40 | E16: =EmFactor!AH21 -> 4.175329836 | F16: 10121.84954
B17: =Vehicles!B17 -> 2028 | C17: =Vehicles!C17 -> 174393.8394 | D17: 40 | E17: =EmFactor!AH22 -> 4.179454866 | F17: 10641.51924
B18: =Vehicles!B18 -> 2029 | C18: =Vehicles!C18 -> 182340.7441 | D18: 40 | E18: =EmFactor!AH23 -> 4.18332032 | F18: 11136.73021
B19: =Vehicles!B19 -> 2030 | C19: =Vehicles!C19 -> 189871.8358 | D19: 40 | E19: =EmFactor!AH24 -> 4.186745728 | F19: 11606.19842
B20: =Vehicles!B20 -> 2031 | C20: =Vehicles!C20 -> 197013.5711 | D20: 40 | E20: =EmFactor!AH25 -> 4.18955141 | F20: 12050.81787
B21: =Vehicles!B21 -> 2032 | C21: =Vehicles!C21 -> 203840.0024 | D21: 40 | E21: =EmFactor!AH26 -> 4.191622784 | F21: 12474.53781
B22: =Vehicles!B22 -> 2033 | C22: =Vehicles!C22 -> 210466.251 | D22: 40 | E22: =EmFactor!AH27 -> 4.192964606 | F22: 12884.1721
B23: =Vehicles!B23 -> 2034 | C23: =Vehicles!C23 -> 217023.9332 | D23: 40 | E23: =EmFactor!AH28 -> 4.193705171 | F23: 13287.96211
B24: =Vehicles!B24 -> 2035 | C24: =Vehicles!C24 -> 223630.5112 | D24: 40 | E24: =EmFactor!AH29 -> 4.194041912 | F24: 13693.56975
B25: =Vehicles!B25 -> 2036 | C25: =Vehicles!C25 -> 230369.1209 | D25: 40 | E25: =EmFactor!AH30 -> 4.194162967 | F25: 14106.60228
B26: =Vehicles!B26 -> 2037 | C26: =Vehicles!C26 -> 237286.9356 | D26: 40 | E26: =EmFactor!AH31 -> 4.194195422 | F26: 14530.32557
B27: =Vehicles!B27 -> 2038 | C27: =Vehicles!C27 -> 244406.5032 | D27: 40 | E27: =EmFactor!AH32 -> 4.194201259 | F27: 14966.31493
B28: =Vehicles!B28 -> 2039 | C28: =Vehicles!C28 -> 251738.7322 | D28: 40 | E28: =EmFactor!AH33 -> 4.194201758 | F28: 15415.30828
B29: =Vehicles!B29 -> 2040 | C29: =Vehicles!C29 -> 259290.8772 | D29: 40 | E29: =EmFactor!AH34 -> 4.194201717 | F29: 15877.76634
B30: =Vehicles!B30 -> 2041 | C30: =Vehicles!C30 -> 267069.5998 | D30: 40 | E30: =EmFactor!AH35 -> 4.194201699 | F30: 16354.09903
B31: =Vehicles!B31 -> 2042 | C31: =Vehicles!C31 -> 275081.6871 | D31: 40 | E31: =EmFactor!AH36 -> 4.194201695 | F31: 16844.72194
B32: =Vehicles!B32 -> 2043 | C32: =Vehicles!C32 -> 283334.1377 | D32: 40 | E32: =EmFactor!AH37 -> 4.194201695 | F32: 17350.0636
B33: =Vehicles!B33 -> 2044 | C33: =Vehicles!C33 -> 291834.1618 | D33: 40 | E33: =EmFactor!AH38 -> 4.194201695 | F33: 17870.56551
B34: =Vehicles!B34 -> 2045 | C34: =Vehicles!C34 -> 300589.1866 | D34: 40 | E34: =EmFactor!AH39 -> 4.194201695 | F34: 18406.68247
B35: =Vehicles!B35 -> 2046 | C35: =Vehicles!C35 -> 309606.8622 | D35: 40 | E35: =EmFactor!AH40 -> 4.194201695 | F35: 18958.88294
B36: =Vehicles!B36 -> 2047 | C36: =Vehicles!C36 -> 318895.0681 | D36: 40 | E36: =EmFactor!AH41 -> 4.194201695 | F36: 19527.64943
B37: =Vehicles!B37 -> 2048 | C37: =Vehicles!C37 -> 328461.9202 | D37: 40 | E37: =EmFactor!AH42 -> 4.194201695 | F37: 20113.47892
B38: =Vehicles!B38 -> 2049 | C38: =Vehicles!C38 -> 338315.7778 | D38: 40 | E38: =EmFactor!AH43 -> 4.194201695 | F38: 20716.88328
B39: =Vehicles!B39 -> 2050 | C39: =Vehicles!C39 -> 348465.2511 | D39: 40 | E39: =EmFactor!AH44 -> 4.194201695 | F39: 21338.38978

Sheet Comparison
B2: Vehicular Air Pollution Information System
B7: Year | C7: Em Base | D7: Em New
C8: ktons | D8: ktons
B9: =Vehicles!B9 -> 2020 | C9: 6067.589114 | D9: =Emissions!F9 -> 6067.589114
B10: =Vehicles!B10 -> 2021 | C10: 6659.299127 | D10: =Emissions!F10 -> 6659.299127
B11: =Vehicles!B11 -> 2022 | C11: 7257.12711 | D11: =Emissions!F11 -> 7257.12711
B12: =Vehicles!B12 -> 2023 | C12: 7852.980296 | D12: =Emissions!F12 -> 7852.980296
B13: =Vehicles!B13 -> 2024 | C13: 8441.794754 | D13: =Emissions!F13 -> 8441.794754
B14: =Vehicles!B14 -> 2025 | C14: 9018.890854 | D14: =Emissions!F14 -> 9018.890854
B15: =Vehicles!B15 -> 2026 | C15: 9580.043991 | D15: =Emissions!F15 -> 9580.043991
B16: =Vehicles!B16 -> 2027 | C16: 10121.84954 | D16: =Emissions!F16 -> 10121.84954
B17: =Vehicles!B17 -> 2028 | C17: 10641.51924 | D17: =Emissions!F17 -> 10641.51924
B18: =Vehicles!B18 -> 2029 | C18: 11136.73021 | D18: =Emissions!F18 -> 11136.73021
B19: =Vehicles!B19 -> 2030 | C19: 11606.19842 | D19: =Emissions!F19 -> 11606.19842
B20: =Vehicles!B20 -> 2031 | C20: 12050.81787 | D20: =Emissions!F20 -> 12050.81787
B21: =Vehicles!B21 -> 2032 | C21: 12474.53781 | D21: =Emissions!F21 -> 12474.53781
B22: =Vehicles!B22 -> 2033 | C22: 12884.1721 | D22: =Emissions!F22 -> 12884.1721
B23: =Vehicles!B23 -> 2034 | C23: 13287.96211 | D23: =Emissions!F23 -> 13287.96211
B24: =Vehicles!B24 -> 2035 | C24: 13693.56975 | D24: =Emissions!F24 -> 13693.56975
B25: =Vehicles!B25 -> 2036 | C25: 14106.60228 | D25: =Emissions!F25 -> 14106.60228
B26: =Vehicles!B26 -> 2037 | C26: 14530.32557 | D26: =Emissions!F26 -> 14530.32557
B27: =Vehicles!B27 -> 2038 | C27: 14966.31493 | D27: =Emissions!F27 -> 14966.31493
B28: =Vehicles!B28 -> 2039 | C28: 15415.30828 | D28: =Emissions!F28 -> 15415.30828
B29: =Vehicles!B29 -> 2040 | C29: 15877.76634 | D29: =Emissions!F29 -> 15877.76634
B30: =Vehicles!B30 -> 2041 | C30: 16354.09903 | D30: =Emissions!F30 -> 16354.09903 | F30: Go back to inputs page or each of the calculation pages to make changes and see how it effects the emissions
B31: =Vehicles!B31 -> 2042 | C31: 16844.72194 | D31: =Emissions!F31 -> 16844.72194
B32: =Vehicles!B32 -> 2043 | C32: 17350.0636 | D32: =Emissions!F32 -> 17350.0636
B33: =Vehicles!B33 -> 2044 | C33: 17870.56551 | D33: =Emissions!F33 -> 17870.56551
B34: =Vehicles!B34 -> 2045 | C34: 18406.68247 | D34: =Emissions!F34 -> 18406.68247
B35: =Vehicles!B35 -> 2046 | C35: 18958.88294 | D35: =Emissions!F35 -> 18958.88294
B36: =Vehicles!B36 -> 2047 | C36: 19527.64943 | D36: =Emissions!F36 -> 19527.64943
B37: =Vehicles!B37 -> 2048 | C37: 20113.47892 | D37: =Emissions!F37 -> 20113.47892
B38: =Vehicles!B38 -> 2049 | C38: 20716.88328 | D38: =Emissions!F38 -> 20716.88328
B39: =Vehicles!B39 -> 2050 | C39: 21338.38978 | D39: =Emissions!F39 -> 21338.38978
